Body Name,Body,Date,Department,Beneficiary,Summary of Purpose (SeRCOP),Amount SUM,Merchant Code,Transaction Number,Supplier ID
Sandwell Metropolitan Borough Council,http://www.sandwell.gov.uk/info/200202/performance_and_spending/1079/payments_over_500,19-Sep-2023,Adults Social Care Capital,VINCI CONSTRUCTION LTD,Adults Social Care Capital,3021.72,Deferred Charges/Grant Payments,2324P06_CR00001,36361
Sandwell Metropolitan Borough Council,http://www.sandwell.gov.uk/info/200202/performance_and_spending/1079/payments_over_500,05-Sep-2023,Adults Social Care Capital,AXIS EUROPE PLC ,Adults Social Care Capital,6045.49,Deferred Charges/Grant Payments,2324P06_CR00002,64946
Sandwell Metropolitan Borough Council,http://www.sandwell.gov.uk/info/200202/performance_and_spending/1079/payments_over_500,01-Sep-2023,Adults Social Care Capital,WESSEX LIFT CO LTD,Adults Social Care Capital,13464.14,Deferred Charges/Grant Payments,2324P06_CR00003,01095737
Sandwell Metropolitan Borough Council,http://www.sandwell.gov.uk/info/200202/performance_and_spending/1079/payments_over_500,27-Sep-2023,Adults Social Care Capital,VINCI CONSTRUCTION LTD,Adults Social Care Capital,19290.46,Deferred Charges/Grant Payments,2324P06_CR00004,36361
Sandwell Metropolitan Borough Council,http://www.sandwell.gov.uk/info/200202/performance_and_spending/1079/payments_over_500,01-Sep-2023,Adults Social Care Capital,B S VIRDEE,Adults Social Care Capital,1950.00,Deferred Charges/Grant Payments,2324P06_CR00005,16907
Sandwell Metropolitan Borough Council,http://www.sandwell.gov.uk/info/200202/performance_and_spending/1079/payments_over_500,20-Sep-2023,Adults Social Care Capital,REDACTED PERSONAL DATA,Adults Social Care Capital,4321.00,Deferred Charges/Grant Payments,2324P06_CR00006,REDACTED PERSONAL DATA
Sandwell Metropolitan Borough Council,http://www.sandwell.gov.uk/info/200202/performance_and_spending/1079/payments_over_500,05-Sep-2023,Adults Social Care Capital,B S VIRDEE,Adults Social Care Capital,5000.00,Deferred Charges/Grant Payments,2324P06_CR00007,16907
Sandwell Metropolitan Borough Council,http://www.sandwell.gov.uk/info/200202/performance_and_spending/1079/payments_over_500,11-Sep-2023,Adults Social Care Capital,TDF DESIGN LIMITED,Adults Social Care Capital,16500.00,Deferred Charges/Grant Payments,2324P06_CR00008,10320
Sandwell Metropolitan Borough Council,http://www.sandwell.gov.uk/info/200202/performance_and_spending/1079/payments_over_500,01-Sep-2023,Adults Social Care Capital,TDF DESIGN LIMITED,Adults Social Care Capital,20000.00,Deferred Charges/Grant Payments,2324P06_CR00009,10320
Sandwell Metropolitan Borough Council,http://www.sandwell.gov.uk/info/200202/performance_and_spending/1079/payments_over_500,01-Sep-2023,Adults Social Care Capital,B S VIRDEE,Adults Social Care Capital,26000.00,Deferred Charges/Grant Payments,2324P06_CR00010,16907
Sandwell Metropolitan Borough Council,http://www.sandwell.gov.uk/info/200202/performance_and_spending/1079/payments_over_500,06-Sep-2023,Adults Social Care Capital,LIFT & ENGINEERING SERVICES LTD,Adults Social Care Capital,1856.39,"CIP - New Construction,Conversion, Enhancement & Reno",2324P06_CR00011,77003962
Sandwell Metropolitan Borough Council,http://www.sandwell.gov.uk/info/200202/performance_and_spending/1079/payments_over_500,05-Sep-2023,Adults Social Care Capital,LIFT & ENGINEERING SERVICES LTD,Adults Social Care Capital,6638.05,"CIP - New Construction,Conversion, Enhancement & Reno",2324P06_CR00012,77003962
Sandwell Metropolitan Borough Council,http://www.sandwell.gov.uk/info/200202/performance_and_spending/1079/payments_over_500,01-Sep-2023,Adults Social Care Capital,LIFT & ENGINEERING SERVICES LTD,Adults Social Care Capital,9266.07,"CIP - New Construction,Conversion, Enhancement & Reno",2324P06_CR00013,77003962
Sandwell Metropolitan Borough Council,http://www.sandwell.gov.uk/info/200202/performance_and_spending/1079/payments_over_500,01-Sep-2023,Childrens Services,RENAISSANCE CREATIVE DESIGN & PRINT LTD,Childrens Services,1495.00,Advertising & Publicity,2324P06_CR00014,97376
Sandwell Metropolitan Borough Council,http://www.sandwell.gov.uk/info/200202/performance_and_spending/1079/payments_over_500,01-Sep-2023,Childrens Services,CLEANIT CLEANING SERVICES,Childrens Services,558.00,Agency Staff,2324P06_CR00015,166301
Sandwell Metropolitan Borough Council,http://www.sandwell.gov.uk/info/200202/performance_and_spending/1079/payments_over_500,28-Sep-2023,Childrens Services,EMMA COX,Childrens Services,580.00,Agency Staff,2324P06_CR00016,166306
Sandwell Metropolitan Borough Council,http://www.sandwell.gov.uk/info/200202/performance_and_spending/1079/payments_over_500,01-Sep-2023,Childrens Services,ROCK + ROWAN,Childrens Services,997.50,Agency Staff,2324P06_CR00017,166413
Sandwell Metropolitan Borough Council,http://www.sandwell.gov.uk/info/200202/performance_and_spending/1079/payments_over_500,01-Sep-2023,Childrens Services,THOMAS CHARLES FACILITIES & MAINTENANCE LTD,Childrens Services,560.00,Building Maintenance & Improvements,2324P06_CR00018,114170
Sandwell Metropolitan Borough Council,http://www.sandwell.gov.uk/info/200202/performance_and_spending/1079/payments_over_500,01-Sep-2023,Childrens Services,CULLIGAN ( UK) LTD,Childrens Services,663.07,Catering Equipment,2324P06_CR00019,1106
Sandwell Metropolitan Borough Council,http://www.sandwell.gov.uk/info/200202/performance_and_spending/1079/payments_over_500,04-Sep-2023,Childrens Services,CASTELL HOWELL FOODS LTD,Childrens Services,541.82,Catering Provisions,2324P06_CR00020,163660
Sandwell Metropolitan Borough Council,http://www.sandwell.gov.uk/info/200202/performance_and_spending/1079/payments_over_500,28-Sep-2023,Childrens Services,BIDFOOD,Childrens Services,569.44,Catering Provisions,2324P06_CR00021,164984
Sandwell Metropolitan Borough Council,http://www.sandwell.gov.uk/info/200202/performance_and_spending/1079/payments_over_500,27-Sep-2023,Childrens Services,BIDFOOD,Childrens Services,575.20,Catering Provisions,2324P06_CR00022,164984
Sandwell Metropolitan Borough Council,http://www.sandwell.gov.uk/info/200202/performance_and_spending/1079/payments_over_500,11-Sep-2023,Childrens Services,BIDFOOD,Childrens Services,857.62,Catering Provisions,2324P06_CR00023,164984
Sandwell Metropolitan Borough Council,http://www.sandwell.gov.uk/info/200202/performance_and_spending/1079/payments_over_500,01-Sep-2023,Childrens Services,BIDFOOD,Childrens Services,1017.67,Catering Provisions,2324P06_CR00024,164984
Sandwell Metropolitan Borough Council,http://www.sandwell.gov.uk/info/200202/performance_and_spending/1079/payments_over_500,01-Sep-2023,Childrens Services,BUFFET EXPRESS,Childrens Services,7130.70,Catering Provisions,2324P06_CR00025,01730518
Sandwell Metropolitan Borough Council,http://www.sandwell.gov.uk/info/200202/performance_and_spending/1079/payments_over_500,20-Sep-2023,Childrens Services,CPC TRAINING CONSULTANTS LTD,Childrens Services,549.99,Discretionary Awards,2324P06_CR00026,91345
Sandwell Metropolitan Borough Council,http://www.sandwell.gov.uk/info/200202/performance_and_spending/1079/payments_over_500,20-Sep-2023,Childrens Services,TOPPS MANAGEMENT & SUPPORT SERVICES LTD,Childrens Services,2857.12,Discretionary Awards,2324P06_CR00027,68846
Sandwell Metropolitan Borough Council,http://www.sandwell.gov.uk/info/200202/performance_and_spending/1079/payments_over_500,20-Sep-2023,Childrens Services,TOPPS MANAGEMENT & SUPPORT SERVICES LTD,Childrens Services,3571.40,Discretionary Awards,2324P06_CR00028,68846
Sandwell Metropolitan Borough Council,http://www.sandwell.gov.uk/info/200202/performance_and_spending/1079/payments_over_500,01-Sep-2023,Childrens Services,TOPPS MANAGEMENT & SUPPORT SERVICES LTD,Childrens Services,5714.24,Discretionary Awards,2324P06_CR00029,68846
Sandwell Metropolitan Borough Council,http://www.sandwell.gov.uk/info/200202/performance_and_spending/1079/payments_over_500,01-Sep-2023,Childrens Services,TOTALENERGIES GAS & POWER LTD,Childrens Services,529.43,Electricity,2324P06_CR00030,107605
Sandwell Metropolitan Borough Council,http://www.sandwell.gov.uk/info/200202/performance_and_spending/1079/payments_over_500,10-Sep-2023,Childrens Services,TOTALENERGIES GAS & POWER LTD,Childrens Services,535.18,Electricity,2324P06_CR00031,107605
Sandwell Metropolitan Borough Council,http://www.sandwell.gov.uk/info/200202/performance_and_spending/1079/payments_over_500,01-Sep-2023,Childrens Services,TOTALENERGIES GAS & POWER LTD,Childrens Services,539.86,Electricity,2324P06_CR00032,107605
Sandwell Metropolitan Borough Council,http://www.sandwell.gov.uk/info/200202/performance_and_spending/1079/payments_over_500,10-Sep-2023,Childrens Services,TOTALENERGIES GAS & POWER LTD,Childrens Services,548.39,Electricity,2324P06_CR00033,107605
Sandwell Metropolitan Borough Council,http://www.sandwell.gov.uk/info/200202/performance_and_spending/1079/payments_over_500,10-Sep-2023,Childrens Services,TOTALENERGIES GAS & POWER LTD,Childrens Services,613.85,Electricity,2324P06_CR00034,107605
Sandwell Metropolitan Borough Council,http://www.sandwell.gov.uk/info/200202/performance_and_spending/1079/payments_over_500,01-Sep-2023,Childrens Services,EON NEXT ENERGY LTD,Childrens Services,794.26,Electricity,2324P06_CR00035,149566
Sandwell Metropolitan Borough Council,http://www.sandwell.gov.uk/info/200202/performance_and_spending/1079/payments_over_500,06-Sep-2023,Childrens Services,EON NEXT ENERGY LTD,Childrens Services,837.91,Electricity,2324P06_CR00036,149566
Sandwell Metropolitan Borough Council,http://www.sandwell.gov.uk/info/200202/performance_and_spending/1079/payments_over_500,10-Sep-2023,Childrens Services,TOTALENERGIES GAS & POWER LTD,Childrens Services,913.51,Electricity,2324P06_CR00037,107605
Sandwell Metropolitan Borough Council,http://www.sandwell.gov.uk/info/200202/performance_and_spending/1079/payments_over_500,10-Sep-2023,Childrens Services,TOTALENERGIES GAS & POWER LTD,Childrens Services,1047.61,Electricity,2324P06_CR00038,107605
Sandwell Metropolitan Borough Council,http://www.sandwell.gov.uk/info/200202/performance_and_spending/1079/payments_over_500,10-Sep-2023,Childrens Services,TOTALENERGIES GAS & POWER LTD,Childrens Services,1471.63,Electricity,2324P06_CR00039,107605
Sandwell Metropolitan Borough Council,http://www.sandwell.gov.uk/info/200202/performance_and_spending/1079/payments_over_500,01-Sep-2023,Childrens Services,TOTALENERGIES GAS & POWER LTD,Childrens Services,1555.02,Electricity,2324P06_CR00040,107605
Sandwell Metropolitan Borough Council,http://www.sandwell.gov.uk/info/200202/performance_and_spending/1079/payments_over_500,01-Sep-2023,Childrens Services,TOTALENERGIES GAS & POWER LTD,Childrens Services,1591.64,Electricity,2324P06_CR00041,107605
Sandwell Metropolitan Borough Council,http://www.sandwell.gov.uk/info/200202/performance_and_spending/1079/payments_over_500,10-Sep-2023,Childrens Services,TOTALENERGIES GAS & POWER LTD,Childrens Services,1868.36,Electricity,2324P06_CR00042,107605
Sandwell Metropolitan Borough Council,http://www.sandwell.gov.uk/info/200202/performance_and_spending/1079/payments_over_500,01-Sep-2023,Childrens Services,TOTALENERGIES GAS & POWER LTD,Childrens Services,2412.17,Electricity,2324P06_CR00043,107605
Sandwell Metropolitan Borough Council,http://www.sandwell.gov.uk/info/200202/performance_and_spending/1079/payments_over_500,01-Sep-2023,Childrens Services,TOTALENERGIES GAS & POWER LTD,Childrens Services,2520.45,Electricity,2324P06_CR00044,107605
Sandwell Metropolitan Borough Council,http://www.sandwell.gov.uk/info/200202/performance_and_spending/1079/payments_over_500,01-Sep-2023,Childrens Services,SSE ENERGY SUPPLY LIMITED,Childrens Services,7840.17,Electricity,2324P06_CR00045,116134
Sandwell Metropolitan Borough Council,http://www.sandwell.gov.uk/info/200202/performance_and_spending/1079/payments_over_500,05-Sep-2023,Childrens Services,CREATION SKATEPARK LTD,Childrens Services,3618.00,Equipment & Furniture ,2324P06_CR00046,82383
Sandwell Metropolitan Borough Council,http://www.sandwell.gov.uk/info/200202/performance_and_spending/1079/payments_over_500,05-Sep-2023,Childrens Services,DUDLEY MBC,Childrens Services,6440.00,External Contract Hire,2324P06_CR00047,01349846
Sandwell Metropolitan Borough Council,http://www.sandwell.gov.uk/info/200202/performance_and_spending/1079/payments_over_500,06-Sep-2023,Childrens Services,ICE BLUE MARKETING & DESIGN,Childrens Services,540.00,Externally Purchased Professional Services ,2324P06_CR00048,64915
Sandwell Metropolitan Borough Council,http://www.sandwell.gov.uk/info/200202/performance_and_spending/1079/payments_over_500,01-Sep-2023,Childrens Services,VSC PLUS LIMITED,Childrens Services,675.75,Externally Purchased Professional Services ,2324P06_CR00049,13468
Sandwell Metropolitan Borough Council,http://www.sandwell.gov.uk/info/200202/performance_and_spending/1079/payments_over_500,01-Sep-2023,Childrens Services,LEARNING INTO EMPLOYMENT ACADEMY LTD,Childrens Services,873.83,Externally Purchased Professional Services ,2324P06_CR00050,147427
Sandwell Metropolitan Borough Council,http://www.sandwell.gov.uk/info/200202/performance_and_spending/1079/payments_over_500,01-Sep-2023,Childrens Services,LEARNING INTO EMPLOYMENT ACADEMY LTD,Childrens Services,873.83,Externally Purchased Professional Services ,2324P06_CR00051,147427
Sandwell Metropolitan Borough Council,http://www.sandwell.gov.uk/info/200202/performance_and_spending/1079/payments_over_500,01-Sep-2023,Childrens Services,LEARNING INTO EMPLOYMENT ACADEMY LTD,Childrens Services,873.83,Externally Purchased Professional Services ,2324P06_CR00052,147427
Sandwell Metropolitan Borough Council,http://www.sandwell.gov.uk/info/200202/performance_and_spending/1079/payments_over_500,11-Sep-2023,Childrens Services,LEARNING INTO EMPLOYMENT ACADEMY LTD,Childrens Services,873.83,Externally Purchased Professional Services ,2324P06_CR00053,147427
Sandwell Metropolitan Borough Council,http://www.sandwell.gov.uk/info/200202/performance_and_spending/1079/payments_over_500,01-Sep-2023,Childrens Services,TOPPS MANAGEMENT & SUPPORT SERVICES LTD,Childrens Services,996.94,Externally Purchased Professional Services ,2324P06_CR00054,68846
Sandwell Metropolitan Borough Council,http://www.sandwell.gov.uk/info/200202/performance_and_spending/1079/payments_over_500,01-Sep-2023,Childrens Services,TOPPS MANAGEMENT & SUPPORT SERVICES LTD,Childrens Services,996.94,Externally Purchased Professional Services ,2324P06_CR00055,68846
Sandwell Metropolitan Borough Council,http://www.sandwell.gov.uk/info/200202/performance_and_spending/1079/payments_over_500,01-Sep-2023,Childrens Services,TOPPS MANAGEMENT & SUPPORT SERVICES LTD,Childrens Services,996.94,Externally Purchased Professional Services ,2324P06_CR00056,68846
Sandwell Metropolitan Borough Council,http://www.sandwell.gov.uk/info/200202/performance_and_spending/1079/payments_over_500,01-Sep-2023,Childrens Services,TOPPS MANAGEMENT & SUPPORT SERVICES LTD,Childrens Services,996.94,Externally Purchased Professional Services ,2324P06_CR00057,68846
Sandwell Metropolitan Borough Council,http://www.sandwell.gov.uk/info/200202/performance_and_spending/1079/payments_over_500,01-Sep-2023,Childrens Services,TOPPS MANAGEMENT & SUPPORT SERVICES LTD,Childrens Services,996.94,Externally Purchased Professional Services ,2324P06_CR00058,68846
Sandwell Metropolitan Borough Council,http://www.sandwell.gov.uk/info/200202/performance_and_spending/1079/payments_over_500,01-Sep-2023,Childrens Services,TOPPS MANAGEMENT & SUPPORT SERVICES LTD,Childrens Services,996.94,Externally Purchased Professional Services ,2324P06_CR00059,68846
Sandwell Metropolitan Borough Council,http://www.sandwell.gov.uk/info/200202/performance_and_spending/1079/payments_over_500,01-Sep-2023,Childrens Services,TOPPS MANAGEMENT & SUPPORT SERVICES LTD,Childrens Services,996.94,Externally Purchased Professional Services ,2324P06_CR00060,68846
Sandwell Metropolitan Borough Council,http://www.sandwell.gov.uk/info/200202/performance_and_spending/1079/payments_over_500,01-Sep-2023,Childrens Services,TOPPS MANAGEMENT & SUPPORT SERVICES LTD,Childrens Services,996.94,Externally Purchased Professional Services ,2324P06_CR00061,68846
Sandwell Metropolitan Borough Council,http://www.sandwell.gov.uk/info/200202/performance_and_spending/1079/payments_over_500,01-Sep-2023,Childrens Services,TOPPS MANAGEMENT & SUPPORT SERVICES LTD,Childrens Services,996.94,Externally Purchased Professional Services ,2324P06_CR00062,68846
Sandwell Metropolitan Borough Council,http://www.sandwell.gov.uk/info/200202/performance_and_spending/1079/payments_over_500,01-Sep-2023,Childrens Services,TOPPS MANAGEMENT & SUPPORT SERVICES LTD,Childrens Services,996.94,Externally Purchased Professional Services ,2324P06_CR00063,68846
Sandwell Metropolitan Borough Council,http://www.sandwell.gov.uk/info/200202/performance_and_spending/1079/payments_over_500,01-Sep-2023,Childrens Services,TOPPS MANAGEMENT & SUPPORT SERVICES LTD,Childrens Services,996.94,Externally Purchased Professional Services ,2324P06_CR00064,68846
Sandwell Metropolitan Borough Council,http://www.sandwell.gov.uk/info/200202/performance_and_spending/1079/payments_over_500,01-Sep-2023,Childrens Services,SKILLS NETWORK LTD,Childrens Services,1000.00,Externally Purchased Professional Services ,2324P06_CR00065,146052
Sandwell Metropolitan Borough Council,http://www.sandwell.gov.uk/info/200202/performance_and_spending/1079/payments_over_500,01-Sep-2023,Childrens Services,NCFE,Childrens Services,1070.00,Externally Purchased Professional Services ,2324P06_CR00066,6230
Sandwell Metropolitan Borough Council,http://www.sandwell.gov.uk/info/200202/performance_and_spending/1079/payments_over_500,04-Sep-2023,Childrens Services,NET BUILDER LIMITED,Childrens Services,1500.00,Externally Purchased Professional Services ,2324P06_CR00067,139019
Sandwell Metropolitan Borough Council,http://www.sandwell.gov.uk/info/200202/performance_and_spending/1079/payments_over_500,04-Sep-2023,Childrens Services,NET BUILDER LIMITED,Childrens Services,2622.00,Externally Purchased Professional Services ,2324P06_CR00068,139019
Sandwell Metropolitan Borough Council,http://www.sandwell.gov.uk/info/200202/performance_and_spending/1079/payments_over_500,01-Sep-2023,Childrens Services,SIPS EDUCATION LTD,Childrens Services,2937.50,Externally Purchased Professional Services ,2324P06_CR00069,110784
Sandwell Metropolitan Borough Council,http://www.sandwell.gov.uk/info/200202/performance_and_spending/1079/payments_over_500,20-Sep-2023,Childrens Services,NET BUILDER LIMITED,Childrens Services,3063.60,Externally Purchased Professional Services ,2324P06_CR00070,139019
Sandwell Metropolitan Borough Council,http://www.sandwell.gov.uk/info/200202/performance_and_spending/1079/payments_over_500,01-Sep-2023,Childrens Services,NET BUILDER LIMITED,Childrens Services,3132.00,Externally Purchased Professional Services ,2324P06_CR00071,139019
Sandwell Metropolitan Borough Council,http://www.sandwell.gov.uk/info/200202/performance_and_spending/1079/payments_over_500,01-Sep-2023,Childrens Services,RUTH PORTER,Childrens Services,3600.00,Externally Purchased Professional Services ,2324P06_CR00072,163710
Sandwell Metropolitan Borough Council,http://www.sandwell.gov.uk/info/200202/performance_and_spending/1079/payments_over_500,01-Sep-2023,Childrens Services,SANDWELL VALLEY SCHOOL,Childrens Services,5271.70,Externally Purchased Professional Services ,2324P06_CR00073,128222
Sandwell Metropolitan Borough Council,http://www.sandwell.gov.uk/info/200202/performance_and_spending/1079/payments_over_500,01-Sep-2023,Childrens Services,SANDWELL VALLEY SCHOOL,Childrens Services,5804.98,Externally Purchased Professional Services ,2324P06_CR00074,128222
Sandwell Metropolitan Borough Council,http://www.sandwell.gov.uk/info/200202/performance_and_spending/1079/payments_over_500,01-Sep-2023,Childrens Services,GAMECHANGER MGV,Childrens Services,6000.00,Externally Purchased Professional Services ,2324P06_CR00075,164868
Sandwell Metropolitan Borough Council,http://www.sandwell.gov.uk/info/200202/performance_and_spending/1079/payments_over_500,01-Sep-2023,Childrens Services,SANDWELL VALLEY SCHOOL,Childrens Services,6049.40,Externally Purchased Professional Services ,2324P06_CR00076,128222
Sandwell Metropolitan Borough Council,http://www.sandwell.gov.uk/info/200202/performance_and_spending/1079/payments_over_500,01-Sep-2023,Childrens Services,SANDWELL VALLEY SCHOOL,Childrens Services,6332.70,Externally Purchased Professional Services ,2324P06_CR00077,128222
Sandwell Metropolitan Borough Council,http://www.sandwell.gov.uk/info/200202/performance_and_spending/1079/payments_over_500,04-Sep-2023,Childrens Services,NET BUILDER LIMITED,Childrens Services,11000.00,Externally Purchased Professional Services ,2324P06_CR00078,139019
Sandwell Metropolitan Borough Council,http://www.sandwell.gov.uk/info/200202/performance_and_spending/1079/payments_over_500,04-Sep-2023,Childrens Services,CORONA ENERGY RETAIL 2 LIMITED,Childrens Services,554.39,Gas,2324P06_CR00079,118395
Sandwell Metropolitan Borough Council,http://www.sandwell.gov.uk/info/200202/performance_and_spending/1079/payments_over_500,01-Sep-2023,Childrens Services,CORONA ENERGY RETAIL 2 LIMITED,Childrens Services,598.14,Gas,2324P06_CR00080,118395
Sandwell Metropolitan Borough Council,http://www.sandwell.gov.uk/info/200202/performance_and_spending/1079/payments_over_500,01-Sep-2023,Childrens Services,TOTALENERGIES GAS & POWER LTD,Childrens Services,864.92,Gas,2324P06_CR00081,107605
Sandwell Metropolitan Borough Council,http://www.sandwell.gov.uk/info/200202/performance_and_spending/1079/payments_over_500,01-Sep-2023,Childrens Services,TOTALENERGIES GAS & POWER LTD,Childrens Services,911.02,Gas,2324P06_CR00082,107605
Sandwell Metropolitan Borough Council,http://www.sandwell.gov.uk/info/200202/performance_and_spending/1079/payments_over_500,01-Sep-2023,Childrens Services,OLD PARK PRIMARY SCHOOL,Childrens Services,2418.33,Gas,2324P06_CR00083,04024287
Sandwell Metropolitan Borough Council,http://www.sandwell.gov.uk/info/200202/performance_and_spending/1079/payments_over_500,11-Sep-2023,Childrens Services,LAVENDER FARM DAY NURSERY,Childrens Services,8480.00,Grant Payments,2324P06_CR00084,65596
Sandwell Metropolitan Borough Council,http://www.sandwell.gov.uk/info/200202/performance_and_spending/1079/payments_over_500,14-Sep-2023,Childrens Services,TICK TOCK DAY NURSERY LTD,Childrens Services,10000.00,Grant Payments,2324P06_CR00085,9391
Sandwell Metropolitan Borough Council,http://www.sandwell.gov.uk/info/200202/performance_and_spending/1079/payments_over_500,01-Sep-2023,Childrens Services,CITIZENS ADVICE SANDWELL & WALSALL,Childrens Services,4732.55,Grants,2324P06_CR00086,01760899
Sandwell Metropolitan Borough Council,http://www.sandwell.gov.uk/info/200202/performance_and_spending/1079/payments_over_500,01-Sep-2023,Childrens Services,CITIZENS ADVICE SANDWELL & WALSALL,Childrens Services,5439.08,Grants,2324P06_CR00087,01760899
Sandwell Metropolitan Borough Council,http://www.sandwell.gov.uk/info/200202/performance_and_spending/1079/payments_over_500,01-Sep-2023,Childrens Services,CITIZENS ADVICE SANDWELL & WALSALL,Childrens Services,5458.22,Grants,2324P06_CR00088,01760899
Sandwell Metropolitan Borough Council,http://www.sandwell.gov.uk/info/200202/performance_and_spending/1079/payments_over_500,01-Sep-2023,Childrens Services,CITIZENS ADVICE SANDWELL & WALSALL,Childrens Services,5628.65,Grants,2324P06_CR00089,01760899
Sandwell Metropolitan Borough Council,http://www.sandwell.gov.uk/info/200202/performance_and_spending/1079/payments_over_500,01-Sep-2023,Childrens Services,CITIZENS ADVICE SANDWELL & WALSALL,Childrens Services,6311.96,Grants,2324P06_CR00090,01760899
Sandwell Metropolitan Borough Council,http://www.sandwell.gov.uk/info/200202/performance_and_spending/1079/payments_over_500,06-Sep-2023,Childrens Services,COMMUNITIES IN SYNC,Childrens Services,14750.60,Grants,2324P06_CR00091,137123
Sandwell Metropolitan Borough Council,http://www.sandwell.gov.uk/info/200202/performance_and_spending/1079/payments_over_500,01-Sep-2023,Childrens Services,NORTH SMETHWICK DEVELOPMENT TRUST,Childrens Services,525.00,Hire of Facilities,2324P06_CR00092,01346623
Sandwell Metropolitan Borough Council,http://www.sandwell.gov.uk/info/200202/performance_and_spending/1079/payments_over_500,25-Sep-2023,Childrens Services,CONFEDERATION OF BRITISH METALFORMING,Childrens Services,612.50,Hire of Facilities,2324P06_CR00093,01675831
Sandwell Metropolitan Borough Council,http://www.sandwell.gov.uk/info/200202/performance_and_spending/1079/payments_over_500,22-Sep-2023,Childrens Services,NORTH SMETHWICK DEVELOPMENT TRUST,Childrens Services,1207.50,Hire of Facilities,2324P06_CR00094,01346623
Sandwell Metropolitan Borough Council,http://www.sandwell.gov.uk/info/200202/performance_and_spending/1079/payments_over_500,25-Sep-2023,Childrens Services,WEST BROMWICH ALBION FC LTD,Childrens Services,1846.00,Hire of Facilities,2324P06_CR00095,01606624
Sandwell Metropolitan Borough Council,http://www.sandwell.gov.uk/info/200202/performance_and_spending/1079/payments_over_500,08-Sep-2023,Childrens Services,CHRIST CHURCH C OF E PRIMARY SCHOOL,Childrens Services,11880.00,Hire of Facilities,2324P06_CR00096,1705
Sandwell Metropolitan Borough Council,http://www.sandwell.gov.uk/info/200202/performance_and_spending/1079/payments_over_500,01-Sep-2023,Childrens Services,LIMBRICK CONSULTANCY LLP T/A THE NATIONAL SBM NETWORK,Childrens Services,3175.00,ICT ,2324P06_CR00097,141428
Sandwell Metropolitan Borough Council,http://www.sandwell.gov.uk/info/200202/performance_and_spending/1079/payments_over_500,27-Sep-2023,Childrens Services,IDOX SOFTWARE LTD,Childrens Services,18690.00,ICT ,2324P06_CR00098,17007
Sandwell Metropolitan Borough Council,http://www.sandwell.gov.uk/info/200202/performance_and_spending/1079/payments_over_500,01-Sep-2023,Childrens Services,THE LAUNDRY ROOM (BEWDLEY) LIMITED,Childrens Services,543.94,Laundry,2324P06_CR00099,127518
Sandwell Metropolitan Borough Council,http://www.sandwell.gov.uk/info/200202/performance_and_spending/1079/payments_over_500,01-Sep-2023,Childrens Services,CANAL & RIVER TRUST,Childrens Services,864.00,Licences,2324P06_CR00100,01631306
Sandwell Metropolitan Borough Council,http://www.sandwell.gov.uk/info/200202/performance_and_spending/1079/payments_over_500,01-Sep-2023,Childrens Services,CERTAS ENERGY LIMITED,Childrens Services,743.14,Oil,2324P06_CR00101,80421
Sandwell Metropolitan Borough Council,http://www.sandwell.gov.uk/info/200202/performance_and_spending/1079/payments_over_500,01-Sep-2023,Childrens Services,CERTAS ENERGY LIMITED,Childrens Services,1490.00,Oil,2324P06_CR00102,80421
Sandwell Metropolitan Borough Council,http://www.sandwell.gov.uk/info/200202/performance_and_spending/1079/payments_over_500,06-Sep-2023,Childrens Services,SANDWELL CHILDREN'S TRUST,Childrens Services,5705769.23,Other Establishments,2324P06_CR00103,133302
Sandwell Metropolitan Borough Council,http://www.sandwell.gov.uk/info/200202/performance_and_spending/1079/payments_over_500,04-Sep-2023,Childrens Services,DJB PEST CONTROL,Childrens Services,635.00,Pest Control,2324P06_CR00104,119231
Sandwell Metropolitan Borough Council,http://www.sandwell.gov.uk/info/200202/performance_and_spending/1079/payments_over_500,01-Sep-2023,Childrens Services,PRINT DIRECT LIMITED,Childrens Services,899.00,"Printing, Stationery & General Office Expenses",2324P06_CR00105,118575
Sandwell Metropolitan Borough Council,http://www.sandwell.gov.uk/info/200202/performance_and_spending/1079/payments_over_500,01-Sep-2023,Childrens Services,PREMIER PRINT & PROMOTIONS LIMITED,Childrens Services,4980.00,"Printing, Stationery & General Office Expenses",2324P06_CR00106,128540
Sandwell Metropolitan Borough Council,http://www.sandwell.gov.uk/info/200202/performance_and_spending/1079/payments_over_500,12-Sep-2023,Childrens Services,GOGNA SCHOOLWEAR & SPORTS LIMITED,Childrens Services,1110.00,Protective Clothing & Uniforms,2324P06_CR00107,04005603
Sandwell Metropolitan Borough Council,http://www.sandwell.gov.uk/info/200202/performance_and_spending/1079/payments_over_500,04-Sep-2023,Childrens Services,WEST MIDLANDS TRAVEL LIMITED,Childrens Services,5308.28,Public Transport,2324P06_CR00108,01736688
Sandwell Metropolitan Borough Council,http://www.sandwell.gov.uk/info/200202/performance_and_spending/1079/payments_over_500,04-Sep-2023,Childrens Services,WEST MIDLANDS TRAVEL LIMITED,Childrens Services,5354.62,Public Transport,2324P06_CR00109,01736688
Sandwell Metropolitan Borough Council,http://www.sandwell.gov.uk/info/200202/performance_and_spending/1079/payments_over_500,04-Sep-2023,Childrens Services,WEST MIDLANDS TRAVEL LIMITED,Childrens Services,5400.98,Public Transport,2324P06_CR00110,01736688
Sandwell Metropolitan Borough Council,http://www.sandwell.gov.uk/info/200202/performance_and_spending/1079/payments_over_500,01-Sep-2023,Childrens Services,NORTH BIRMINGHAM TRAVEL LTD,Childrens Services,39743.60,Public Transport,2324P06_CR00111,72112
Sandwell Metropolitan Borough Council,http://www.sandwell.gov.uk/info/200202/performance_and_spending/1079/payments_over_500,01-Sep-2023,Childrens Services,NORTH BIRMINGHAM TRAVEL LTD,Childrens Services,39743.60,Public Transport,2324P06_CR00112,72112
Sandwell Metropolitan Borough Council,http://www.sandwell.gov.uk/info/200202/performance_and_spending/1079/payments_over_500,01-Sep-2023,Childrens Services,NORTH BIRMINGHAM TRAVEL LTD,Childrens Services,39743.60,Public Transport,2324P06_CR00113,72112
Sandwell Metropolitan Borough Council,http://www.sandwell.gov.uk/info/200202/performance_and_spending/1079/payments_over_500,01-Sep-2023,Childrens Services,NORTH BIRMINGHAM TRAVEL LTD,Childrens Services,39743.60,Public Transport,2324P06_CR00114,72112
Sandwell Metropolitan Borough Council,http://www.sandwell.gov.uk/info/200202/performance_and_spending/1079/payments_over_500,01-Sep-2023,Childrens Services,NORTH BIRMINGHAM TRAVEL LTD,Childrens Services,39743.60,Public Transport,2324P06_CR00115,72112
Sandwell Metropolitan Borough Council,http://www.sandwell.gov.uk/info/200202/performance_and_spending/1079/payments_over_500,01-Sep-2023,Childrens Services,NORTH BIRMINGHAM TRAVEL LTD,Childrens Services,44002.70,Public Transport,2324P06_CR00116,72112
Sandwell Metropolitan Borough Council,http://www.sandwell.gov.uk/info/200202/performance_and_spending/1079/payments_over_500,01-Sep-2023,Childrens Services,NORTH BIRMINGHAM TRAVEL LTD,Childrens Services,44002.70,Public Transport,2324P06_CR00117,72112
Sandwell Metropolitan Borough Council,http://www.sandwell.gov.uk/info/200202/performance_and_spending/1079/payments_over_500,01-Sep-2023,Childrens Services,NORTH BIRMINGHAM TRAVEL LTD,Childrens Services,44002.70,Public Transport,2324P06_CR00118,72112
Sandwell Metropolitan Borough Council,http://www.sandwell.gov.uk/info/200202/performance_and_spending/1079/payments_over_500,01-Sep-2023,Childrens Services,NORTH BIRMINGHAM TRAVEL LTD,Childrens Services,44755.16,Public Transport,2324P06_CR00119,72112
Sandwell Metropolitan Borough Council,http://www.sandwell.gov.uk/info/200202/performance_and_spending/1079/payments_over_500,01-Sep-2023,Childrens Services,NORTH BIRMINGHAM TRAVEL LTD,Childrens Services,44755.16,Public Transport,2324P06_CR00120,72112
Sandwell Metropolitan Borough Council,http://www.sandwell.gov.uk/info/200202/performance_and_spending/1079/payments_over_500,01-Sep-2023,Childrens Services,NORTH BIRMINGHAM TRAVEL LTD,Childrens Services,44755.16,Public Transport,2324P06_CR00121,72112
Sandwell Metropolitan Borough Council,http://www.sandwell.gov.uk/info/200202/performance_and_spending/1079/payments_over_500,01-Sep-2023,Childrens Services,NORTH BIRMINGHAM TRAVEL LTD,Childrens Services,46406.20,Public Transport,2324P06_CR00122,72112
Sandwell Metropolitan Borough Council,http://www.sandwell.gov.uk/info/200202/performance_and_spending/1079/payments_over_500,01-Sep-2023,Childrens Services,NORTH BIRMINGHAM TRAVEL LTD,Childrens Services,47361.94,Public Transport,2324P06_CR00123,72112
Sandwell Metropolitan Borough Council,http://www.sandwell.gov.uk/info/200202/performance_and_spending/1079/payments_over_500,01-Sep-2023,Childrens Services,AFJ LIMITED,Childrens Services,49625.17,Public Transport,2324P06_CR00124,164912
Sandwell Metropolitan Borough Council,http://www.sandwell.gov.uk/info/200202/performance_and_spending/1079/payments_over_500,01-Sep-2023,Childrens Services,AFJ LIMITED,Childrens Services,56059.45,Public Transport,2324P06_CR00125,164912
Sandwell Metropolitan Borough Council,http://www.sandwell.gov.uk/info/200202/performance_and_spending/1079/payments_over_500,01-Sep-2023,Childrens Services,NORTH BIRMINGHAM TRAVEL LTD,Childrens Services,57804.63,Public Transport,2324P06_CR00126,72112
Sandwell Metropolitan Borough Council,http://www.sandwell.gov.uk/info/200202/performance_and_spending/1079/payments_over_500,01-Sep-2023,Childrens Services,NORTH BIRMINGHAM TRAVEL LTD,Childrens Services,60652.53,Public Transport,2324P06_CR00127,72112
Sandwell Metropolitan Borough Council,http://www.sandwell.gov.uk/info/200202/performance_and_spending/1079/payments_over_500,07-Sep-2023,Childrens Services,NORTH BIRMINGHAM TRAVEL LTD,Childrens Services,121335.47,Public Transport,2324P06_CR00128,72112
Sandwell Metropolitan Borough Council,http://www.sandwell.gov.uk/info/200202/performance_and_spending/1079/payments_over_500,07-Sep-2023,Childrens Services,NORTH BIRMINGHAM TRAVEL LTD,Childrens Services,121335.47,Public Transport,2324P06_CR00129,72112
Sandwell Metropolitan Borough Council,http://www.sandwell.gov.uk/info/200202/performance_and_spending/1079/payments_over_500,07-Sep-2023,Childrens Services,NORTH BIRMINGHAM TRAVEL LTD,Childrens Services,123694.26,Public Transport,2324P06_CR00130,72112
Sandwell Metropolitan Borough Council,http://www.sandwell.gov.uk/info/200202/performance_and_spending/1079/payments_over_500,07-Sep-2023,Childrens Services,NORTH BIRMINGHAM TRAVEL LTD,Childrens Services,123694.26,Public Transport,2324P06_CR00131,72112
Sandwell Metropolitan Borough Council,http://www.sandwell.gov.uk/info/200202/performance_and_spending/1079/payments_over_500,07-Sep-2023,Childrens Services,NORTH BIRMINGHAM TRAVEL LTD,Childrens Services,123694.26,Public Transport,2324P06_CR00132,72112
Sandwell Metropolitan Borough Council,http://www.sandwell.gov.uk/info/200202/performance_and_spending/1079/payments_over_500,01-Sep-2023,Childrens Services,COUNTY CARS (2003) LIMITED,Childrens Services,217463.53,Public Transport,2324P06_CR00133,06002387
Sandwell Metropolitan Borough Council,http://www.sandwell.gov.uk/info/200202/performance_and_spending/1079/payments_over_500,01-Sep-2023,Childrens Services,COUNTY CARS (2003) LIMITED,Childrens Services,233021.60,Public Transport,2324P06_CR00134,06002387
Sandwell Metropolitan Borough Council,http://www.sandwell.gov.uk/info/200202/performance_and_spending/1079/payments_over_500,01-Sep-2023,Childrens Services,COUNTY CARS (2003) LIMITED,Childrens Services,235403.44,Public Transport,2324P06_CR00135,06002387
Sandwell Metropolitan Borough Council,http://www.sandwell.gov.uk/info/200202/performance_and_spending/1079/payments_over_500,01-Sep-2023,Childrens Services,COUNTY CARS (2003) LIMITED,Childrens Services,238795.22,Public Transport,2324P06_CR00136,06002387
Sandwell Metropolitan Borough Council,http://www.sandwell.gov.uk/info/200202/performance_and_spending/1079/payments_over_500,01-Sep-2023,Childrens Services,COUNTY CARS (2003) LIMITED,Childrens Services,241813.84,Public Transport,2324P06_CR00137,06002387
Sandwell Metropolitan Borough Council,http://www.sandwell.gov.uk/info/200202/performance_and_spending/1079/payments_over_500,01-Sep-2023,Childrens Services,CUSTODIAN GROUP LTD,Childrens Services,630.00,Rents,2324P06_CR00138,151637
Sandwell Metropolitan Borough Council,http://www.sandwell.gov.uk/info/200202/performance_and_spending/1079/payments_over_500,01-Sep-2023,Childrens Services,CUSTODIAN GROUP LTD,Childrens Services,630.00,Rents,2324P06_CR00139,151637
Sandwell Metropolitan Borough Council,http://www.sandwell.gov.uk/info/200202/performance_and_spending/1079/payments_over_500,01-Sep-2023,Childrens Services,CUSTODIAN GROUP LTD,Childrens Services,630.00,Rents,2324P06_CR00140,151637
Sandwell Metropolitan Borough Council,http://www.sandwell.gov.uk/info/200202/performance_and_spending/1079/payments_over_500,01-Sep-2023,Childrens Services,CUSTODIAN GROUP LTD,Childrens Services,630.00,Rents,2324P06_CR00141,151637
Sandwell Metropolitan Borough Council,http://www.sandwell.gov.uk/info/200202/performance_and_spending/1079/payments_over_500,01-Sep-2023,Childrens Services,CUSTODIAN GROUP LTD,Childrens Services,630.00,Rents,2324P06_CR00142,151637
Sandwell Metropolitan Borough Council,http://www.sandwell.gov.uk/info/200202/performance_and_spending/1079/payments_over_500,01-Sep-2023,Childrens Services,CUSTODIAN GROUP LTD,Childrens Services,630.00,Rents,2324P06_CR00143,151637
Sandwell Metropolitan Borough Council,http://www.sandwell.gov.uk/info/200202/performance_and_spending/1079/payments_over_500,07-Sep-2023,Childrens Services,CUSTODIAN GROUP LTD,Childrens Services,630.00,Rents,2324P06_CR00144,151637
Sandwell Metropolitan Borough Council,http://www.sandwell.gov.uk/info/200202/performance_and_spending/1079/payments_over_500,07-Sep-2023,Childrens Services,CUSTODIAN GROUP LTD,Childrens Services,630.00,Rents,2324P06_CR00145,151637
Sandwell Metropolitan Borough Council,http://www.sandwell.gov.uk/info/200202/performance_and_spending/1079/payments_over_500,07-Sep-2023,Childrens Services,CUSTODIAN GROUP LTD,Childrens Services,630.00,Rents,2324P06_CR00146,151637
Sandwell Metropolitan Borough Council,http://www.sandwell.gov.uk/info/200202/performance_and_spending/1079/payments_over_500,07-Sep-2023,Childrens Services,CUSTODIAN GROUP LTD,Childrens Services,630.00,Rents,2324P06_CR00147,151637
Sandwell Metropolitan Borough Council,http://www.sandwell.gov.uk/info/200202/performance_and_spending/1079/payments_over_500,07-Sep-2023,Childrens Services,CUSTODIAN GROUP LTD,Childrens Services,630.00,Rents,2324P06_CR00148,151637
Sandwell Metropolitan Borough Council,http://www.sandwell.gov.uk/info/200202/performance_and_spending/1079/payments_over_500,07-Sep-2023,Childrens Services,CUSTODIAN GROUP LTD,Childrens Services,630.00,Rents,2324P06_CR00149,151637
Sandwell Metropolitan Borough Council,http://www.sandwell.gov.uk/info/200202/performance_and_spending/1079/payments_over_500,01-Sep-2023,Childrens Services,CUSTODIAN GROUP LTD,Childrens Services,630.00,Rents,2324P06_CR00150,151637
Sandwell Metropolitan Borough Council,http://www.sandwell.gov.uk/info/200202/performance_and_spending/1079/payments_over_500,01-Sep-2023,Childrens Services,CUSTODIAN GROUP LTD,Childrens Services,630.00,Rents,2324P06_CR00151,151637
Sandwell Metropolitan Borough Council,http://www.sandwell.gov.uk/info/200202/performance_and_spending/1079/payments_over_500,01-Sep-2023,Childrens Services,CUSTODIAN GROUP LTD,Childrens Services,630.00,Rents,2324P06_CR00152,151637
Sandwell Metropolitan Borough Council,http://www.sandwell.gov.uk/info/200202/performance_and_spending/1079/payments_over_500,01-Sep-2023,Childrens Services,CUSTODIAN GROUP LTD,Childrens Services,630.00,Rents,2324P06_CR00153,151637
Sandwell Metropolitan Borough Council,http://www.sandwell.gov.uk/info/200202/performance_and_spending/1079/payments_over_500,01-Sep-2023,Childrens Services,CUSTODIAN GROUP LTD,Childrens Services,630.00,Rents,2324P06_CR00154,151637
Sandwell Metropolitan Borough Council,http://www.sandwell.gov.uk/info/200202/performance_and_spending/1079/payments_over_500,01-Sep-2023,Childrens Services,CUSTODIAN GROUP LTD,Childrens Services,630.00,Rents,2324P06_CR00155,151637
Sandwell Metropolitan Borough Council,http://www.sandwell.gov.uk/info/200202/performance_and_spending/1079/payments_over_500,06-Sep-2023,Childrens Services,GILANI ENTERPRISES LIMITED,Childrens Services,733.33,Rents,2324P06_CR00156,2696
Sandwell Metropolitan Borough Council,http://www.sandwell.gov.uk/info/200202/performance_and_spending/1079/payments_over_500,01-Sep-2023,Childrens Services,TRH WALSALL LTD,Childrens Services,933.52,Rents,2324P06_CR00157,85648
Sandwell Metropolitan Borough Council,http://www.sandwell.gov.uk/info/200202/performance_and_spending/1079/payments_over_500,01-Sep-2023,Childrens Services,TRH WALSALL LTD,Childrens Services,933.52,Rents,2324P06_CR00158,85648
Sandwell Metropolitan Borough Council,http://www.sandwell.gov.uk/info/200202/performance_and_spending/1079/payments_over_500,01-Sep-2023,Childrens Services,BCH PROPERTY LIMITED,Childrens Services,1054.32,Rents,2324P06_CR00159,01011861
Sandwell Metropolitan Borough Council,http://www.sandwell.gov.uk/info/200202/performance_and_spending/1079/payments_over_500,01-Sep-2023,Childrens Services,BCH PROPERTY LIMITED,Childrens Services,1166.76,Rents,2324P06_CR00160,01011861
Sandwell Metropolitan Borough Council,http://www.sandwell.gov.uk/info/200202/performance_and_spending/1079/payments_over_500,01-Sep-2023,Childrens Services,BCH PROPERTY LIMITED,Childrens Services,1166.76,Rents,2324P06_CR00161,01011861
Sandwell Metropolitan Borough Council,http://www.sandwell.gov.uk/info/200202/performance_and_spending/1079/payments_over_500,01-Sep-2023,Childrens Services,BCH PROPERTY LIMITED,Childrens Services,1283.52,Rents,2324P06_CR00162,01011861
Sandwell Metropolitan Borough Council,http://www.sandwell.gov.uk/info/200202/performance_and_spending/1079/payments_over_500,01-Sep-2023,Childrens Services,BCH PROPERTY LIMITED,Childrens Services,1283.52,Rents,2324P06_CR00163,01011861
Sandwell Metropolitan Borough Council,http://www.sandwell.gov.uk/info/200202/performance_and_spending/1079/payments_over_500,01-Sep-2023,Childrens Services,BCH PROPERTY LIMITED,Childrens Services,1283.52,Rents,2324P06_CR00164,01011861
Sandwell Metropolitan Borough Council,http://www.sandwell.gov.uk/info/200202/performance_and_spending/1079/payments_over_500,01-Sep-2023,Childrens Services,BCH PROPERTY LIMITED,Childrens Services,1283.52,Rents,2324P06_CR00165,01011861
Sandwell Metropolitan Borough Council,http://www.sandwell.gov.uk/info/200202/performance_and_spending/1079/payments_over_500,01-Sep-2023,Childrens Services,BCH PROPERTY LIMITED,Childrens Services,1283.52,Rents,2324P06_CR00166,01011861
Sandwell Metropolitan Borough Council,http://www.sandwell.gov.uk/info/200202/performance_and_spending/1079/payments_over_500,01-Sep-2023,Childrens Services,BCH PROPERTY LIMITED,Childrens Services,1283.52,Rents,2324P06_CR00167,01011861
Sandwell Metropolitan Borough Council,http://www.sandwell.gov.uk/info/200202/performance_and_spending/1079/payments_over_500,01-Sep-2023,Childrens Services,BCH PROPERTY LIMITED,Childrens Services,1283.52,Rents,2324P06_CR00168,01011861
Sandwell Metropolitan Borough Council,http://www.sandwell.gov.uk/info/200202/performance_and_spending/1079/payments_over_500,01-Sep-2023,Childrens Services,BCH PROPERTY LIMITED,Childrens Services,1283.52,Rents,2324P06_CR00169,01011861
Sandwell Metropolitan Borough Council,http://www.sandwell.gov.uk/info/200202/performance_and_spending/1079/payments_over_500,01-Sep-2023,Childrens Services,BCH PROPERTY LIMITED,Childrens Services,1283.52,Rents,2324P06_CR00170,01011861
Sandwell Metropolitan Borough Council,http://www.sandwell.gov.uk/info/200202/performance_and_spending/1079/payments_over_500,01-Sep-2023,Childrens Services,TRH WALSALL LTD,Childrens Services,1283.52,Rents,2324P06_CR00171,85648
Sandwell Metropolitan Borough Council,http://www.sandwell.gov.uk/info/200202/performance_and_spending/1079/payments_over_500,01-Sep-2023,Childrens Services,BCH PROPERTY LIMITED,Childrens Services,1568.00,Rents,2324P06_CR00172,01011861
Sandwell Metropolitan Borough Council,http://www.sandwell.gov.uk/info/200202/performance_and_spending/1079/payments_over_500,01-Sep-2023,Childrens Services,BCH PROPERTY LIMITED,Childrens Services,1568.00,Rents,2324P06_CR00173,01011861
Sandwell Metropolitan Borough Council,http://www.sandwell.gov.uk/info/200202/performance_and_spending/1079/payments_over_500,06-Sep-2023,Childrens Services,GILANI ENTERPRISES LIMITED,Childrens Services,1866.67,Rents,2324P06_CR00174,2696
Sandwell Metropolitan Borough Council,http://www.sandwell.gov.uk/info/200202/performance_and_spending/1079/payments_over_500,06-Sep-2023,Childrens Services,GILANI ENTERPRISES LIMITED,Childrens Services,2000.00,Rents,2324P06_CR00175,2696
Sandwell Metropolitan Borough Council,http://www.sandwell.gov.uk/info/200202/performance_and_spending/1079/payments_over_500,06-Sep-2023,Childrens Services,GILANI ENTERPRISES LIMITED,Childrens Services,2133.33,Rents,2324P06_CR00176,2696
Sandwell Metropolitan Borough Council,http://www.sandwell.gov.uk/info/200202/performance_and_spending/1079/payments_over_500,06-Sep-2023,Childrens Services,GILANI ENTERPRISES LIMITED,Childrens Services,2133.33,Rents,2324P06_CR00177,2696
Sandwell Metropolitan Borough Council,http://www.sandwell.gov.uk/info/200202/performance_and_spending/1079/payments_over_500,06-Sep-2023,Childrens Services,GILANI ENTERPRISES LIMITED,Childrens Services,2133.33,Rents,2324P06_CR00178,2696
Sandwell Metropolitan Borough Council,http://www.sandwell.gov.uk/info/200202/performance_and_spending/1079/payments_over_500,06-Sep-2023,Childrens Services,GILANI ENTERPRISES LIMITED,Childrens Services,2133.33,Rents,2324P06_CR00179,2696
Sandwell Metropolitan Borough Council,http://www.sandwell.gov.uk/info/200202/performance_and_spending/1079/payments_over_500,06-Sep-2023,Childrens Services,GILANI ENTERPRISES LIMITED,Childrens Services,2133.33,Rents,2324P06_CR00180,2696
Sandwell Metropolitan Borough Council,http://www.sandwell.gov.uk/info/200202/performance_and_spending/1079/payments_over_500,06-Sep-2023,Childrens Services,GILANI ENTERPRISES LIMITED,Childrens Services,2133.33,Rents,2324P06_CR00181,2696
Sandwell Metropolitan Borough Council,http://www.sandwell.gov.uk/info/200202/performance_and_spending/1079/payments_over_500,06-Sep-2023,Childrens Services,GILANI ENTERPRISES LIMITED,Childrens Services,2900.00,Rents,2324P06_CR00182,2696
Sandwell Metropolitan Borough Council,http://www.sandwell.gov.uk/info/200202/performance_and_spending/1079/payments_over_500,01-Sep-2023,Childrens Services,GILANI ENTERPRISES LIMITED,Childrens Services,3200.00,Rents,2324P06_CR00183,2696
Sandwell Metropolitan Borough Council,http://www.sandwell.gov.uk/info/200202/performance_and_spending/1079/payments_over_500,06-Sep-2023,Childrens Services,GILANI ENTERPRISES LIMITED,Childrens Services,3200.00,Rents,2324P06_CR00184,2696
Sandwell Metropolitan Borough Council,http://www.sandwell.gov.uk/info/200202/performance_and_spending/1079/payments_over_500,06-Sep-2023,Childrens Services,GILANI ENTERPRISES LIMITED,Childrens Services,3200.00,Rents,2324P06_CR00185,2696
Sandwell Metropolitan Borough Council,http://www.sandwell.gov.uk/info/200202/performance_and_spending/1079/payments_over_500,04-Sep-2023,Childrens Services,OLD PARK PRIMARY SCHOOL,Childrens Services,16331.46,Rents,2324P06_CR00186,04024287
Sandwell Metropolitan Borough Council,http://www.sandwell.gov.uk/info/200202/performance_and_spending/1079/payments_over_500,01-Sep-2023,Childrens Services,ADT FIRE & SECURITY PLC,Childrens Services,1714.59,Security,2324P06_CR00187,01115015
Sandwell Metropolitan Borough Council,http://www.sandwell.gov.uk/info/200202/performance_and_spending/1079/payments_over_500,08-Sep-2023,Childrens Services,UNIVERSITY OF BRISTOL,Childrens Services,1031.10,Subscriptions,2324P06_CR00188,1748
Sandwell Metropolitan Borough Council,http://www.sandwell.gov.uk/info/200202/performance_and_spending/1079/payments_over_500,28-Sep-2023,Childrens Services,WATER PLUS SELECT LIMITED,Childrens Services,752.06,Water Services,2324P06_CR00189,129644
Sandwell Metropolitan Borough Council,http://www.sandwell.gov.uk/info/200202/performance_and_spending/1079/payments_over_500,12-Sep-2023,Childrens Services,REDACTED PERSONAL DATA,Childrens Services,545.45,External Contract Hire,2324P06_CR00190,REDACTED PERSONAL DATA
Sandwell Metropolitan Borough Council,http://www.sandwell.gov.uk/info/200202/performance_and_spending/1079/payments_over_500,12-Sep-2023,Childrens Services,REDACTED PERSONAL DATA,Childrens Services,545.45,External Contract Hire,2324P06_CR00191,REDACTED PERSONAL DATA
Sandwell Metropolitan Borough Council,http://www.sandwell.gov.uk/info/200202/performance_and_spending/1079/payments_over_500,12-Sep-2023,Childrens Services,REDACTED PERSONAL DATA,Childrens Services,545.45,External Contract Hire,2324P06_CR00192,REDACTED PERSONAL DATA
Sandwell Metropolitan Borough Council,http://www.sandwell.gov.uk/info/200202/performance_and_spending/1079/payments_over_500,12-Sep-2023,Childrens Services,REDACTED PERSONAL DATA,Childrens Services,545.45,External Contract Hire,2324P06_CR00193,REDACTED PERSONAL DATA
Sandwell Metropolitan Borough Council,http://www.sandwell.gov.uk/info/200202/performance_and_spending/1079/payments_over_500,12-Sep-2023,Childrens Services,REDACTED PERSONAL DATA,Childrens Services,545.45,External Contract Hire,2324P06_CR00194,REDACTED PERSONAL DATA
Sandwell Metropolitan Borough Council,http://www.sandwell.gov.uk/info/200202/performance_and_spending/1079/payments_over_500,12-Sep-2023,Childrens Services,REDACTED PERSONAL DATA,Childrens Services,545.45,External Contract Hire,2324P06_CR00195,REDACTED PERSONAL DATA
Sandwell Metropolitan Borough Council,http://www.sandwell.gov.uk/info/200202/performance_and_spending/1079/payments_over_500,12-Sep-2023,Childrens Services,REDACTED PERSONAL DATA,Childrens Services,545.45,External Contract Hire,2324P06_CR00196,REDACTED PERSONAL DATA
Sandwell Metropolitan Borough Council,http://www.sandwell.gov.uk/info/200202/performance_and_spending/1079/payments_over_500,12-Sep-2023,Childrens Services,REDACTED PERSONAL DATA,Childrens Services,545.45,External Contract Hire,2324P06_CR00197,REDACTED PERSONAL DATA
Sandwell Metropolitan Borough Council,http://www.sandwell.gov.uk/info/200202/performance_and_spending/1079/payments_over_500,12-Sep-2023,Childrens Services,REDACTED PERSONAL DATA,Childrens Services,545.45,External Contract Hire,2324P06_CR00198,REDACTED PERSONAL DATA
Sandwell Metropolitan Borough Council,http://www.sandwell.gov.uk/info/200202/performance_and_spending/1079/payments_over_500,12-Sep-2023,Childrens Services,REDACTED PERSONAL DATA,Childrens Services,545.45,External Contract Hire,2324P06_CR00199,REDACTED PERSONAL DATA
Sandwell Metropolitan Borough Council,http://www.sandwell.gov.uk/info/200202/performance_and_spending/1079/payments_over_500,12-Sep-2023,Childrens Services,REDACTED PERSONAL DATA,Childrens Services,545.45,External Contract Hire,2324P06_CR00200,REDACTED PERSONAL DATA
Sandwell Metropolitan Borough Council,http://www.sandwell.gov.uk/info/200202/performance_and_spending/1079/payments_over_500,12-Sep-2023,Childrens Services,REDACTED PERSONAL DATA,Childrens Services,545.45,External Contract Hire,2324P06_CR00201,REDACTED PERSONAL DATA
Sandwell Metropolitan Borough Council,http://www.sandwell.gov.uk/info/200202/performance_and_spending/1079/payments_over_500,12-Sep-2023,Childrens Services,REDACTED PERSONAL DATA,Childrens Services,545.45,External Contract Hire,2324P06_CR00202,REDACTED PERSONAL DATA
Sandwell Metropolitan Borough Council,http://www.sandwell.gov.uk/info/200202/performance_and_spending/1079/payments_over_500,12-Sep-2023,Childrens Services,REDACTED PERSONAL DATA,Childrens Services,545.45,External Contract Hire,2324P06_CR00203,REDACTED PERSONAL DATA
Sandwell Metropolitan Borough Council,http://www.sandwell.gov.uk/info/200202/performance_and_spending/1079/payments_over_500,12-Sep-2023,Childrens Services,REDACTED PERSONAL DATA,Childrens Services,545.45,External Contract Hire,2324P06_CR00204,REDACTED PERSONAL DATA
Sandwell Metropolitan Borough Council,http://www.sandwell.gov.uk/info/200202/performance_and_spending/1079/payments_over_500,12-Sep-2023,Childrens Services,REDACTED PERSONAL DATA,Childrens Services,545.45,External Contract Hire,2324P06_CR00205,REDACTED PERSONAL DATA
Sandwell Metropolitan Borough Council,http://www.sandwell.gov.uk/info/200202/performance_and_spending/1079/payments_over_500,12-Sep-2023,Childrens Services,REDACTED PERSONAL DATA,Childrens Services,545.45,External Contract Hire,2324P06_CR00206,REDACTED PERSONAL DATA
Sandwell Metropolitan Borough Council,http://www.sandwell.gov.uk/info/200202/performance_and_spending/1079/payments_over_500,12-Sep-2023,Childrens Services,REDACTED PERSONAL DATA,Childrens Services,545.45,External Contract Hire,2324P06_CR00207,REDACTED PERSONAL DATA
Sandwell Metropolitan Borough Council,http://www.sandwell.gov.uk/info/200202/performance_and_spending/1079/payments_over_500,12-Sep-2023,Childrens Services,REDACTED PERSONAL DATA,Childrens Services,727.27,External Contract Hire,2324P06_CR00208,REDACTED PERSONAL DATA
Sandwell Metropolitan Borough Council,http://www.sandwell.gov.uk/info/200202/performance_and_spending/1079/payments_over_500,12-Sep-2023,Childrens Services,REDACTED PERSONAL DATA,Childrens Services,727.27,External Contract Hire,2324P06_CR00209,REDACTED PERSONAL DATA
Sandwell Metropolitan Borough Council,http://www.sandwell.gov.uk/info/200202/performance_and_spending/1079/payments_over_500,12-Sep-2023,Childrens Services,REDACTED PERSONAL DATA,Childrens Services,727.27,External Contract Hire,2324P06_CR00210,REDACTED PERSONAL DATA
Sandwell Metropolitan Borough Council,http://www.sandwell.gov.uk/info/200202/performance_and_spending/1079/payments_over_500,12-Sep-2023,Childrens Services,REDACTED PERSONAL DATA,Childrens Services,727.27,External Contract Hire,2324P06_CR00211,REDACTED PERSONAL DATA
Sandwell Metropolitan Borough Council,http://www.sandwell.gov.uk/info/200202/performance_and_spending/1079/payments_over_500,12-Sep-2023,Childrens Services,REDACTED PERSONAL DATA,Childrens Services,727.27,External Contract Hire,2324P06_CR00212,REDACTED PERSONAL DATA
Sandwell Metropolitan Borough Council,http://www.sandwell.gov.uk/info/200202/performance_and_spending/1079/payments_over_500,12-Sep-2023,Childrens Services,REDACTED PERSONAL DATA,Childrens Services,727.27,External Contract Hire,2324P06_CR00213,REDACTED PERSONAL DATA
Sandwell Metropolitan Borough Council,http://www.sandwell.gov.uk/info/200202/performance_and_spending/1079/payments_over_500,12-Sep-2023,Childrens Services,REDACTED PERSONAL DATA,Childrens Services,727.27,External Contract Hire,2324P06_CR00214,REDACTED PERSONAL DATA
Sandwell Metropolitan Borough Council,http://www.sandwell.gov.uk/info/200202/performance_and_spending/1079/payments_over_500,12-Sep-2023,Childrens Services,REDACTED PERSONAL DATA,Childrens Services,727.27,External Contract Hire,2324P06_CR00215,REDACTED PERSONAL DATA
Sandwell Metropolitan Borough Council,http://www.sandwell.gov.uk/info/200202/performance_and_spending/1079/payments_over_500,12-Sep-2023,Childrens Services,REDACTED PERSONAL DATA,Childrens Services,727.28,External Contract Hire,2324P06_CR00216,REDACTED PERSONAL DATA
Sandwell Metropolitan Borough Council,http://www.sandwell.gov.uk/info/200202/performance_and_spending/1079/payments_over_500,12-Sep-2023,Childrens Services,REDACTED PERSONAL DATA,Childrens Services,1090.90,External Contract Hire,2324P06_CR00217,REDACTED PERSONAL DATA
Sandwell Metropolitan Borough Council,http://www.sandwell.gov.uk/info/200202/performance_and_spending/1079/payments_over_500,29-Sep-2023,Childrens Services,THE BRANCH,Childrens Services,2020.92,Grant Payments,2324P06_CR00218,08588514
Sandwell Metropolitan Borough Council,http://www.sandwell.gov.uk/info/200202/performance_and_spending/1079/payments_over_500,12-Sep-2023,Childrens Services,SADWICA DAY NURSERY,Childrens Services,7538.00,Grant Payments,2324P06_CR00219,01667892
Sandwell Metropolitan Borough Council,http://www.sandwell.gov.uk/info/200202/performance_and_spending/1079/payments_over_500,12-Sep-2023,Childrens Services,SANDWELL CHILDREN'S TRUST,Childrens Services,7840.00,Grant Payments,2324P06_CR00220,133302
Sandwell Metropolitan Borough Council,http://www.sandwell.gov.uk/info/200202/performance_and_spending/1079/payments_over_500,26-Sep-2023,Childrens Services,CREATIVE ACTIVE LIVES CIC,Childrens Services,9541.00,Grant Payments,2324P06_CR00221,138641
Sandwell Metropolitan Borough Council,http://www.sandwell.gov.uk/info/200202/performance_and_spending/1079/payments_over_500,26-Sep-2023,Childrens Services,TIME STEP DANCE,Childrens Services,11164.00,Grant Payments,2324P06_CR00222,141570
Sandwell Metropolitan Borough Council,http://www.sandwell.gov.uk/info/200202/performance_and_spending/1079/payments_over_500,22-Sep-2023,Childrens Services,POWERED BY CAN LTD,Childrens Services,23410.00,Grant Payments,2324P06_CR00223,116825
Sandwell Metropolitan Borough Council,http://www.sandwell.gov.uk/info/200202/performance_and_spending/1079/payments_over_500,20-Sep-2023,Childrens Services Capital,PELL FRISCHMANN CONSULTANTS LIMITED,Childrens Services Capital,2082.73,"CIP - New Construction,Conversion, Enhancement & Reno",2324P06_CR00224,42350
Sandwell Metropolitan Borough Council,http://www.sandwell.gov.uk/info/200202/performance_and_spending/1079/payments_over_500,20-Sep-2023,Childrens Services Capital,UPLANDS MANOR PRIMARY               01,Childrens Services Capital,34752.50,"CIP - New Construction,Conversion, Enhancement & Reno",2324P06_CR00225,04024322
Sandwell Metropolitan Borough Council,http://www.sandwell.gov.uk/info/200202/performance_and_spending/1079/payments_over_500,01-Sep-2023,Corporate Management,WEST MIDLANDS EMPLOYERS,Corporate Management,2522.00,Externally Purchased Professional Services ,2324P06_CR00226,01587505
Sandwell Metropolitan Borough Council,http://www.sandwell.gov.uk/info/200202/performance_and_spending/1079/payments_over_500,01-Sep-2023,Corporate Management,WEST MIDLANDS EMPLOYERS,Corporate Management,3822.00,Externally Purchased Professional Services ,2324P06_CR00227,01587505
Sandwell Metropolitan Borough Council,http://www.sandwell.gov.uk/info/200202/performance_and_spending/1079/payments_over_500,07-Sep-2023,Corporate Management,CDW LIMITED,Corporate Management,976.69,ICT ,2324P06_CR00228,140946
Sandwell Metropolitan Borough Council,http://www.sandwell.gov.uk/info/200202/performance_and_spending/1079/payments_over_500,01-Sep-2023,Corporate Management,LIEUTENANCY SERVICES (WEST MIDLANDS) LIMITED,Corporate Management,7875.00,SH Payments,2324P06_CR00229,132672
Sandwell Metropolitan Borough Council,http://www.sandwell.gov.uk/info/200202/performance_and_spending/1079/payments_over_500,13-Sep-2023,FINANCE (Inc SIU),BROWNE JACOBSON LLP,Assistant Chief Executive (Excl SIU),590.60,Externally Purchased Professional Services ,2324P06_CR00230,109574
Sandwell Metropolitan Borough Council,http://www.sandwell.gov.uk/info/200202/performance_and_spending/1079/payments_over_500,21-Sep-2023,FINANCE (Inc SIU),SEDGWICK INTERNATIONAL UK,Assistant Chief Executive (Excl SIU),712.50,Externally Purchased Professional Services ,2324P06_CR00231,136510
Sandwell Metropolitan Borough Council,http://www.sandwell.gov.uk/info/200202/performance_and_spending/1079/payments_over_500,13-Sep-2023,FINANCE (Inc SIU),BROWNE JACOBSON LLP,Assistant Chief Executive (Excl SIU),986.30,Externally Purchased Professional Services ,2324P06_CR00232,109574
Sandwell Metropolitan Borough Council,http://www.sandwell.gov.uk/info/200202/performance_and_spending/1079/payments_over_500,04-Sep-2023,FINANCE (Inc SIU),SEDGWICK INTERNATIONAL UK,Assistant Chief Executive (Excl SIU),1312.50,Externally Purchased Professional Services ,2324P06_CR00233,136510
Sandwell Metropolitan Borough Council,http://www.sandwell.gov.uk/info/200202/performance_and_spending/1079/payments_over_500,13-Sep-2023,FINANCE (Inc SIU),BROWNE JACOBSON LLP,Assistant Chief Executive (Excl SIU),1668.40,Externally Purchased Professional Services ,2324P06_CR00234,109574
Sandwell Metropolitan Borough Council,http://www.sandwell.gov.uk/info/200202/performance_and_spending/1079/payments_over_500,18-Sep-2023,FINANCE (Inc SIU),BROWNE JACOBSON LLP,Assistant Chief Executive (Excl SIU),4373.00,Externally Purchased Professional Services ,2324P06_CR00235,109574
Sandwell Metropolitan Borough Council,http://www.sandwell.gov.uk/info/200202/performance_and_spending/1079/payments_over_500,01-Sep-2023,FINANCE (Inc SIU),SATCHELL MORAN SOLICITORS,Assistant Chief Executive (Excl SIU),500.00,Insurance,2324P06_CR00236,154265
Sandwell Metropolitan Borough Council,http://www.sandwell.gov.uk/info/200202/performance_and_spending/1079/payments_over_500,15-Sep-2023,FINANCE (Inc SIU),AWH LEGAL LTD,Assistant Chief Executive (Excl SIU),1000.00,Insurance,2324P06_CR00237,164723
Sandwell Metropolitan Borough Council,http://www.sandwell.gov.uk/info/200202/performance_and_spending/1079/payments_over_500,21-Sep-2023,FINANCE (Inc SIU),GOWING LAW SOLICITORS,Assistant Chief Executive (Excl SIU),1000.00,Insurance,2324P06_CR00238,163069
Sandwell Metropolitan Borough Council,http://www.sandwell.gov.uk/info/200202/performance_and_spending/1079/payments_over_500,08-Sep-2023,FINANCE (Inc SIU),BOND TURNER,Assistant Chief Executive (Excl SIU),1446.18,Insurance,2324P06_CR00239,152400
Sandwell Metropolitan Borough Council,http://www.sandwell.gov.uk/info/200202/performance_and_spending/1079/payments_over_500,25-Sep-2023,FINANCE (Inc SIU),TRADE UNION LEGAL LLP,Assistant Chief Executive (Excl SIU),1500.00,Insurance,2324P06_CR00240,121278
Sandwell Metropolitan Borough Council,http://www.sandwell.gov.uk/info/200202/performance_and_spending/1079/payments_over_500,01-Sep-2023,FINANCE (Inc SIU),MCDERMOTT SMITH LAW CLIENT ACCOUNT,Assistant Chief Executive (Excl SIU),1533.65,Insurance,2324P06_CR00241,164526
Sandwell Metropolitan Borough Council,http://www.sandwell.gov.uk/info/200202/performance_and_spending/1079/payments_over_500,20-Sep-2023,FINANCE (Inc SIU),ZURICH INSURANCE,Assistant Chief Executive (Excl SIU),1680.00,Insurance,2324P06_CR00242,166975
Sandwell Metropolitan Borough Council,http://www.sandwell.gov.uk/info/200202/performance_and_spending/1079/payments_over_500,01-Sep-2023,FINANCE (Inc SIU),EMERALD LAW LTD,Assistant Chief Executive (Excl SIU),1958.87,Insurance,2324P06_CR00243,151068
Sandwell Metropolitan Borough Council,http://www.sandwell.gov.uk/info/200202/performance_and_spending/1079/payments_over_500,08-Sep-2023,FINANCE (Inc SIU),EMERALD LAW LTD,Assistant Chief Executive (Excl SIU),2000.00,Insurance,2324P06_CR00244,151068
Sandwell Metropolitan Borough Council,http://www.sandwell.gov.uk/info/200202/performance_and_spending/1079/payments_over_500,20-Sep-2023,FINANCE (Inc SIU),ZURICH INSURANCE,Assistant Chief Executive (Excl SIU),2525.00,Insurance,2324P06_CR00245,166975
Sandwell Metropolitan Borough Council,http://www.sandwell.gov.uk/info/200202/performance_and_spending/1079/payments_over_500,25-Sep-2023,FINANCE (Inc SIU),DRISCOLL KINGSTON SOLICITORS,Assistant Chief Executive (Excl SIU),3000.00,Insurance,2324P06_CR00246,140883
Sandwell Metropolitan Borough Council,http://www.sandwell.gov.uk/info/200202/performance_and_spending/1079/payments_over_500,19-Sep-2023,FINANCE (Inc SIU),AWH LEGAL LTD,Assistant Chief Executive (Excl SIU),5500.00,Insurance,2324P06_CR00247,164723
Sandwell Metropolitan Borough Council,http://www.sandwell.gov.uk/info/200202/performance_and_spending/1079/payments_over_500,25-Sep-2023,FINANCE (Inc SIU),GOWING LAW SOLICITORS,Assistant Chief Executive (Excl SIU),6250.00,Insurance,2324P06_CR00248,163069
Sandwell Metropolitan Borough Council,http://www.sandwell.gov.uk/info/200202/performance_and_spending/1079/payments_over_500,22-Sep-2023,FINANCE (Inc SIU),CANTER LEVIN & BERG SOLICITORS,Assistant Chief Executive (Excl SIU),7850.00,Insurance,2324P06_CR00249,57595
Sandwell Metropolitan Borough Council,http://www.sandwell.gov.uk/info/200202/performance_and_spending/1079/payments_over_500,28-Sep-2023,FINANCE (Inc SIU),BOND TURNER,Assistant Chief Executive (Excl SIU),9000.00,Insurance,2324P06_CR00250,152400
Sandwell Metropolitan Borough Council,http://www.sandwell.gov.uk/info/200202/performance_and_spending/1079/payments_over_500,06-Sep-2023,FINANCE (Inc SIU),SYDNEY MITCHELL LLP.,Assistant Chief Executive (Excl SIU),50000.00,Insurance,2324P06_CR00251,100106
Sandwell Metropolitan Borough Council,http://www.sandwell.gov.uk/info/200202/performance_and_spending/1079/payments_over_500,18-Sep-2023,FINANCE (Inc SIU),ST MATTHEWS CE PRIMARY SCHOOL  ,Assistant Chief Executive (Excl SIU),69119.18,Insurance,2324P06_CR00252,20553
Sandwell Metropolitan Borough Council,http://www.sandwell.gov.uk/info/200202/performance_and_spending/1079/payments_over_500,01-Sep-2023,FINANCE (Inc SIU),ALLPAY LIMITED,Total Adult Social Care,-2204.40,Externally Purchased Professional Services ,2324P06_CR00253,111177
Sandwell Metropolitan Borough Council,http://www.sandwell.gov.uk/info/200202/performance_and_spending/1079/payments_over_500,01-Sep-2023,FINANCE (Inc SIU),AMBIENT PEOPLE LTD,Assistant Chief Executive (Excl SIU),1380.00,Agency Staff,2324P06_CR00254,165446
Sandwell Metropolitan Borough Council,http://www.sandwell.gov.uk/info/200202/performance_and_spending/1079/payments_over_500,01-Sep-2023,FINANCE (Inc SIU),MACILDOWIE ASSOCIATES LTD,Assistant Chief Executive (Excl SIU),1404.00,Agency Staff,2324P06_CR00255,164797
Sandwell Metropolitan Borough Council,http://www.sandwell.gov.uk/info/200202/performance_and_spending/1079/payments_over_500,01-Sep-2023,FINANCE (Inc SIU),MACILDOWIE ASSOCIATES LTD,Assistant Chief Executive (Excl SIU),2106.00,Agency Staff,2324P06_CR00256,164797
Sandwell Metropolitan Borough Council,http://www.sandwell.gov.uk/info/200202/performance_and_spending/1079/payments_over_500,01-Sep-2023,FINANCE (Inc SIU),EKAL SOLUTIONS LIMITED,Assistant Chief Executive (Excl SIU),2340.00,Agency Staff,2324P06_CR00257,166571
Sandwell Metropolitan Borough Council,http://www.sandwell.gov.uk/info/200202/performance_and_spending/1079/payments_over_500,01-Sep-2023,FINANCE (Inc SIU),AMBIENT PEOPLE LTD,Assistant Chief Executive (Excl SIU),2760.00,Agency Staff,2324P06_CR00258,165446
Sandwell Metropolitan Borough Council,http://www.sandwell.gov.uk/info/200202/performance_and_spending/1079/payments_over_500,01-Sep-2023,FINANCE (Inc SIU),AMBIENT PEOPLE LTD,Assistant Chief Executive (Excl SIU),2760.00,Agency Staff,2324P06_CR00259,165446
Sandwell Metropolitan Borough Council,http://www.sandwell.gov.uk/info/200202/performance_and_spending/1079/payments_over_500,11-Sep-2023,FINANCE (Inc SIU),THE OYSTER PARTNERSHIP LTD,Assistant Chief Executive (Excl SIU),2800.00,Agency Staff,2324P06_CR00260,148917
Sandwell Metropolitan Borough Council,http://www.sandwell.gov.uk/info/200202/performance_and_spending/1079/payments_over_500,01-Sep-2023,FINANCE (Inc SIU),MACILDOWIE ASSOCIATES LTD,Assistant Chief Executive (Excl SIU),2808.00,Agency Staff,2324P06_CR00261,164797
Sandwell Metropolitan Borough Council,http://www.sandwell.gov.uk/info/200202/performance_and_spending/1079/payments_over_500,25-Sep-2023,FINANCE (Inc SIU),EKAL SOLUTIONS LIMITED,Assistant Chief Executive (Excl SIU),2925.00,Agency Staff,2324P06_CR00262,166571
Sandwell Metropolitan Borough Council,http://www.sandwell.gov.uk/info/200202/performance_and_spending/1079/payments_over_500,25-Sep-2023,FINANCE (Inc SIU),EKAL SOLUTIONS LIMITED,Assistant Chief Executive (Excl SIU),2925.00,Agency Staff,2324P06_CR00263,166571
Sandwell Metropolitan Borough Council,http://www.sandwell.gov.uk/info/200202/performance_and_spending/1079/payments_over_500,04-Sep-2023,FINANCE (Inc SIU),PERMANENT FUTURES LTD,Assistant Chief Executive (Excl SIU),3375.00,Agency Staff,2324P06_CR00264,45209
Sandwell Metropolitan Borough Council,http://www.sandwell.gov.uk/info/200202/performance_and_spending/1079/payments_over_500,04-Sep-2023,FINANCE (Inc SIU),PERMANENT FUTURES LTD,Assistant Chief Executive (Excl SIU),3375.00,Agency Staff,2324P06_CR00265,45209
Sandwell Metropolitan Borough Council,http://www.sandwell.gov.uk/info/200202/performance_and_spending/1079/payments_over_500,04-Sep-2023,FINANCE (Inc SIU),PERMANENT FUTURES LTD,Assistant Chief Executive (Excl SIU),3375.00,Agency Staff,2324P06_CR00266,45209
Sandwell Metropolitan Borough Council,http://www.sandwell.gov.uk/info/200202/performance_and_spending/1079/payments_over_500,11-Sep-2023,FINANCE (Inc SIU),PERMANENT FUTURES LTD,Assistant Chief Executive (Excl SIU),3375.00,Agency Staff,2324P06_CR00267,45209
Sandwell Metropolitan Borough Council,http://www.sandwell.gov.uk/info/200202/performance_and_spending/1079/payments_over_500,01-Sep-2023,FINANCE (Inc SIU),MACILDOWIE ASSOCIATES LTD,Assistant Chief Executive (Excl SIU),3510.00,Agency Staff,2324P06_CR00268,164797
Sandwell Metropolitan Borough Council,http://www.sandwell.gov.uk/info/200202/performance_and_spending/1079/payments_over_500,05-Sep-2023,FINANCE (Inc SIU),ALLPAY LIMITED,Assistant Chief Executive (Excl SIU),4375.77,Bank Charges & Commissions,2324P06_CR00269,111177
Sandwell Metropolitan Borough Council,http://www.sandwell.gov.uk/info/200202/performance_and_spending/1079/payments_over_500,25-Sep-2023,FINANCE (Inc SIU),SOCITM ADVISORY LTD,Assistant Chief Executive (Excl SIU),9833.33,Consultancy,2324P06_CR00270,162370
Sandwell Metropolitan Borough Council,http://www.sandwell.gov.uk/info/200202/performance_and_spending/1079/payments_over_500,01-Sep-2023,FINANCE (Inc SIU),LAVAT CONSULTING LIMITED T/A PSTAX,Assistant Chief Executive (Excl SIU),10800.00,Consultancy,2324P06_CR00271,127781
Sandwell Metropolitan Borough Council,http://www.sandwell.gov.uk/info/200202/performance_and_spending/1079/payments_over_500,25-Sep-2023,FINANCE (Inc SIU),SOCITM ADVISORY LTD,Assistant Chief Executive (Excl SIU),19796.43,Consultancy,2324P06_CR00272,162370
Sandwell Metropolitan Borough Council,http://www.sandwell.gov.uk/info/200202/performance_and_spending/1079/payments_over_500,01-Sep-2023,FINANCE (Inc SIU),SOCITM ADVISORY LTD,Assistant Chief Executive (Excl SIU),45900.00,Consultancy,2324P06_CR00273,162370
Sandwell Metropolitan Borough Council,http://www.sandwell.gov.uk/info/200202/performance_and_spending/1079/payments_over_500,25-Sep-2023,FINANCE (Inc SIU),SOCITM ADVISORY LTD,Assistant Chief Executive (Excl SIU),71410.71,Consultancy,2324P06_CR00274,162370
Sandwell Metropolitan Borough Council,http://www.sandwell.gov.uk/info/200202/performance_and_spending/1079/payments_over_500,01-Sep-2023,FINANCE (Inc SIU),PROVISION  HOUSE,Assistant Chief Executive (Excl SIU),13030.00,Equipment & Furniture ,2324P06_CR00275,71090
Sandwell Metropolitan Borough Council,http://www.sandwell.gov.uk/info/200202/performance_and_spending/1079/payments_over_500,10-Sep-2023,FINANCE (Inc SIU),RUNDLE & CO LIMITED,Assistant Chief Executive (Excl SIU),535.00,Externally Purchased Professional Services ,2324P06_CR00276,118523
Sandwell Metropolitan Borough Council,http://www.sandwell.gov.uk/info/200202/performance_and_spending/1079/payments_over_500,01-Sep-2023,FINANCE (Inc SIU),INFORM CPI LTD,Assistant Chief Executive (Excl SIU),590.00,Externally Purchased Professional Services ,2324P06_CR00277,123986
Sandwell Metropolitan Borough Council,http://www.sandwell.gov.uk/info/200202/performance_and_spending/1079/payments_over_500,10-Sep-2023,FINANCE (Inc SIU),RUNDLE & CO LIMITED,Assistant Chief Executive (Excl SIU),610.60,Externally Purchased Professional Services ,2324P06_CR00278,118523
Sandwell Metropolitan Borough Council,http://www.sandwell.gov.uk/info/200202/performance_and_spending/1079/payments_over_500,06-Sep-2023,FINANCE (Inc SIU),NATIONAL CRIME AGENCY (NCA),Assistant Chief Executive (Excl SIU),690.00,Externally Purchased Professional Services ,2324P06_CR00279,76482
Sandwell Metropolitan Borough Council,http://www.sandwell.gov.uk/info/200202/performance_and_spending/1079/payments_over_500,15-Sep-2023,FINANCE (Inc SIU),DRYDENS LIMITED,Assistant Chief Executive (Excl SIU),990.00,Externally Purchased Professional Services ,2324P06_CR00280,91069
Sandwell Metropolitan Borough Council,http://www.sandwell.gov.uk/info/200202/performance_and_spending/1079/payments_over_500,10-Sep-2023,FINANCE (Inc SIU),RUNDLE & CO LIMITED,Assistant Chief Executive (Excl SIU),1000.00,Externally Purchased Professional Services ,2324P06_CR00281,118523
Sandwell Metropolitan Borough Council,http://www.sandwell.gov.uk/info/200202/performance_and_spending/1079/payments_over_500,01-Sep-2023,FINANCE (Inc SIU),GW SOLUTIONS LTD,Assistant Chief Executive (Excl SIU),1550.00,Externally Purchased Professional Services ,2324P06_CR00282,166222
Sandwell Metropolitan Borough Council,http://www.sandwell.gov.uk/info/200202/performance_and_spending/1079/payments_over_500,01-Sep-2023,FINANCE (Inc SIU),ACHILLES INFORMATION LTD,Assistant Chief Executive (Excl SIU),2970.00,Externally Purchased Professional Services ,2324P06_CR00283,4481
Sandwell Metropolitan Borough Council,http://www.sandwell.gov.uk/info/200202/performance_and_spending/1079/payments_over_500,11-Sep-2023,FINANCE (Inc SIU),GBS PROCURE LIMITED,Assistant Chief Executive (Excl SIU),3119.42,Externally Purchased Professional Services ,2324P06_CR00284,165756
Sandwell Metropolitan Borough Council,http://www.sandwell.gov.uk/info/200202/performance_and_spending/1079/payments_over_500,04-Sep-2023,FINANCE (Inc SIU),SOLACE IN BUSINESS LTD,Assistant Chief Executive (Excl SIU),3200.00,Externally Purchased Professional Services ,2324P06_CR00285,129445
Sandwell Metropolitan Borough Council,http://www.sandwell.gov.uk/info/200202/performance_and_spending/1079/payments_over_500,01-Sep-2023,FINANCE (Inc SIU),ENTSERV UK LIMITED,Assistant Chief Executive (Excl SIU),4070.00,Externally Purchased Professional Services ,2324P06_CR00286,51471
Sandwell Metropolitan Borough Council,http://www.sandwell.gov.uk/info/200202/performance_and_spending/1079/payments_over_500,01-Sep-2023,FINANCE (Inc SIU),GREENHALGH KERR SOLICITORS LIMITED,Assistant Chief Executive (Excl SIU),4250.00,Externally Purchased Professional Services ,2324P06_CR00287,127273
Sandwell Metropolitan Borough Council,http://www.sandwell.gov.uk/info/200202/performance_and_spending/1079/payments_over_500,05-Sep-2023,FINANCE (Inc SIU),INOAPPS LIMITED,Assistant Chief Executive (Excl SIU),7700.00,Externally Purchased Professional Services ,2324P06_CR00288,122364
Sandwell Metropolitan Borough Council,http://www.sandwell.gov.uk/info/200202/performance_and_spending/1079/payments_over_500,01-Sep-2023,FINANCE (Inc SIU),CIPFA C.CO,Assistant Chief Executive (Excl SIU),36000.00,Externally Purchased Professional Services ,2324P06_CR00289,134304
Sandwell Metropolitan Borough Council,http://www.sandwell.gov.uk/info/200202/performance_and_spending/1079/payments_over_500,12-Sep-2023,FINANCE (Inc SIU),PAYPOINT PLC,Assistant Chief Executive (Excl SIU),1065.85,Fuel ,2324P06_CR00290,112333
Sandwell Metropolitan Borough Council,http://www.sandwell.gov.uk/info/200202/performance_and_spending/1079/payments_over_500,25-Sep-2023,FINANCE (Inc SIU),PAYPOINT PLC,Assistant Chief Executive (Excl SIU),1715.85,Fuel ,2324P06_CR00291,112333
Sandwell Metropolitan Borough Council,http://www.sandwell.gov.uk/info/200202/performance_and_spending/1079/payments_over_500,18-Sep-2023,FINANCE (Inc SIU),PAYPOINT PLC,Assistant Chief Executive (Excl SIU),1770.35,Fuel ,2324P06_CR00292,112333
Sandwell Metropolitan Borough Council,http://www.sandwell.gov.uk/info/200202/performance_and_spending/1079/payments_over_500,05-Sep-2023,FINANCE (Inc SIU),PAYPOINT PLC,Assistant Chief Executive (Excl SIU),2449.85,Fuel ,2324P06_CR00293,112333
Sandwell Metropolitan Borough Council,http://www.sandwell.gov.uk/info/200202/performance_and_spending/1079/payments_over_500,01-Sep-2023,FINANCE (Inc SIU),NATIONAL WESTMINSTER BANK PLC,Assistant Chief Executive (Excl SIU),1200.00,Grant Payments,2324P06_CR00294,120965
Sandwell Metropolitan Borough Council,http://www.sandwell.gov.uk/info/200202/performance_and_spending/1079/payments_over_500,01-Sep-2023,FINANCE (Inc SIU),NATIONAL WESTMINSTER BANK PLC,Assistant Chief Executive (Excl SIU),1600.00,Grant Payments,2324P06_CR00295,120965
Sandwell Metropolitan Borough Council,http://www.sandwell.gov.uk/info/200202/performance_and_spending/1079/payments_over_500,01-Sep-2023,FINANCE (Inc SIU),NATIONAL WESTMINSTER BANK PLC IRO ENERGY BILLS SUPPORT SCHEME,Assistant Chief Executive (Excl SIU),6800.00,Grant Payments,2324P06_CR00296,120965
Sandwell Metropolitan Borough Council,http://www.sandwell.gov.uk/info/200202/performance_and_spending/1079/payments_over_500,01-Sep-2023,FINANCE (Inc SIU),ASCENDANT SOLUTIONS LIMITED,Assistant Chief Executive (Excl SIU),9160.00,Grant Payments,2324P06_CR00297,150134
Sandwell Metropolitan Borough Council,http://www.sandwell.gov.uk/info/200202/performance_and_spending/1079/payments_over_500,22-Sep-2023,FINANCE (Inc SIU),OMNIPLEX (GROUP) LTD,Assistant Chief Executive (Excl SIU),2134.24,Licences,2324P06_CR00298,152463
Sandwell Metropolitan Borough Council,http://www.sandwell.gov.uk/info/200202/performance_and_spending/1079/payments_over_500,01-Sep-2023,FINANCE (Inc SIU),WOLVERHAMPTON CITY COUNCIL,Assistant Chief Executive (Excl SIU),143248.80,Pensions,2324P06_CR00299,120965
Sandwell Metropolitan Borough Council,http://www.sandwell.gov.uk/info/200202/performance_and_spending/1079/payments_over_500,01-Sep-2023,FINANCE (Inc SIU),NEC SOFTWARE SOLUTIONS UK LTD,Assistant Chief Executive (Excl SIU),543.53,Private Contractors,2324P06_CR00300,56043
Sandwell Metropolitan Borough Council,http://www.sandwell.gov.uk/info/200202/performance_and_spending/1079/payments_over_500,15-Sep-2023,FINANCE (Inc SIU),NEC SOFTWARE SOLUTIONS UK LTD,Assistant Chief Executive (Excl SIU),1100.00,Private Contractors,2324P06_CR00301,56043
Sandwell Metropolitan Borough Council,http://www.sandwell.gov.uk/info/200202/performance_and_spending/1079/payments_over_500,01-Sep-2023,FINANCE (Inc SIU),ICHABOD'S INDUSTRIES LTD,Assistant Chief Executive (Excl SIU),2100.00,Subscriptions,2324P06_CR00302,166436
Sandwell Metropolitan Borough Council,http://www.sandwell.gov.uk/info/200202/performance_and_spending/1079/payments_over_500,18-Sep-2023,FINANCE (Inc SIU),BARNSLEY MBC,Assistant Chief Executive (Excl SIU),3750.00,Subscriptions,2324P06_CR00303,01650159
Sandwell Metropolitan Borough Council,http://www.sandwell.gov.uk/info/200202/performance_and_spending/1079/payments_over_500,01-Sep-2023,FINANCE (Inc SIU),WALSALL MBC,Strategic Investment Unit,141000.00,Fees & Charges,2324P06_CR00304,120965
Sandwell Metropolitan Borough Council,http://www.sandwell.gov.uk/info/200202/performance_and_spending/1079/payments_over_500,15-Sep-2023,FINANCE (Inc SIU),POSTURITE (UK) LTD,Total Adult Social Care,549.15,Equipment & Furniture ,2324P06_CR00305,01492682
Sandwell Metropolitan Borough Council,http://www.sandwell.gov.uk/info/200202/performance_and_spending/1079/payments_over_500,01-Sep-2023,FINANCE (Inc SIU),ALLPAY LIMITED,Total Adult Social Care,1115.41,Externally Purchased Professional Services ,2324P06_CR00306,111177
Sandwell Metropolitan Borough Council,http://www.sandwell.gov.uk/info/200202/performance_and_spending/1079/payments_over_500,01-Sep-2023,FINANCE (Inc SIU),ALLPAY LIMITED,Total Adult Social Care,1118.59,Externally Purchased Professional Services ,2324P06_CR00307,111177
Sandwell Metropolitan Borough Council,http://www.sandwell.gov.uk/info/200202/performance_and_spending/1079/payments_over_500,01-Sep-2023,FINANCE (Inc SIU),RESTORE DIGITAL LIMITED,Total Adult Social Care,914.20,ICT ,2324P06_CR00308,13549
Sandwell Metropolitan Borough Council,http://www.sandwell.gov.uk/info/200202/performance_and_spending/1079/payments_over_500,22-Sep-2023,FINANCE (Inc SIU),RESTORE DIGITAL LIMITED,Total Adult Social Care,914.20,ICT ,2324P06_CR00309,13549
Sandwell Metropolitan Borough Council,http://www.sandwell.gov.uk/info/200202/performance_and_spending/1079/payments_over_500,06-Sep-2023,Housing & Assets Total,MIDLAND FORESTRY LIMITED,Housing & Assets Total,-588.48,Externally Purchased Professional Services ,2324P06_CR00310,45812
Sandwell Metropolitan Borough Council,http://www.sandwell.gov.uk/info/200202/performance_and_spending/1079/payments_over_500,22-Sep-2023,Housing & Assets Total,MIDLAND FORESTRY LIMITED,Housing & Assets Total,-586.00,Externally Purchased Professional Services ,2324P06_CR00311,45812
Sandwell Metropolitan Borough Council,http://www.sandwell.gov.uk/info/200202/performance_and_spending/1079/payments_over_500,22-Sep-2023,Housing & Assets Total,MIDLAND FORESTRY LIMITED,Housing & Assets Total,-586.00,Externally Purchased Professional Services ,2324P06_CR00312,45812
Sandwell Metropolitan Borough Council,http://www.sandwell.gov.uk/info/200202/performance_and_spending/1079/payments_over_500,25-Sep-2023,Housing & Assets Total,SARWAN S SHOKER,Corporate Management,2964.80,Building Maintenance & Improvements,2324P06_CR00313,116808
Sandwell Metropolitan Borough Council,http://www.sandwell.gov.uk/info/200202/performance_and_spending/1079/payments_over_500,01-Sep-2023,Housing & Assets Total,EUROPEAN'S WELFARE ASSOCIATION CIC,Corporate Management,19500.00,Grant Payments,2324P06_CR00314,123703
Sandwell Metropolitan Borough Council,http://www.sandwell.gov.uk/info/200202/performance_and_spending/1079/payments_over_500,01-Sep-2023,Housing & Assets Total,BRUSHSTROKES,Corporate Management,23015.32,Grant Payments,2324P06_CR00315,21029374
Sandwell Metropolitan Borough Council,http://www.sandwell.gov.uk/info/200202/performance_and_spending/1079/payments_over_500,08-Sep-2023,Housing & Assets Total,MENZIES DESIGN AND PRINT LTD,Corporate Management,550.00,"Printing, Stationery & General Office Expenses",2324P06_CR00316,113639
Sandwell Metropolitan Borough Council,http://www.sandwell.gov.uk/info/200202/performance_and_spending/1079/payments_over_500,01-Sep-2023,Housing & Assets Total,CONTRACT LETTINGS LTD,Corporate Management,541.80,Rents,2324P06_CR00317,76625
Sandwell Metropolitan Borough Council,http://www.sandwell.gov.uk/info/200202/performance_and_spending/1079/payments_over_500,05-Sep-2023,Housing & Assets Total,CONTRACT LETTINGS LTD,Corporate Management,559.86,Rents,2324P06_CR00318,76625
Sandwell Metropolitan Borough Council,http://www.sandwell.gov.uk/info/200202/performance_and_spending/1079/payments_over_500,05-Sep-2023,Housing & Assets Total,CONTRACT LETTINGS LTD,Corporate Management,559.86,Rents,2324P06_CR00319,76625
Sandwell Metropolitan Borough Council,http://www.sandwell.gov.uk/info/200202/performance_and_spending/1079/payments_over_500,01-Sep-2023,Housing & Assets Total,GILANI ENTERPRISES LIMITED,Corporate Management,600.00,Rents,2324P06_CR00320,2696
Sandwell Metropolitan Borough Council,http://www.sandwell.gov.uk/info/200202/performance_and_spending/1079/payments_over_500,01-Sep-2023,Housing & Assets Total,GILANI ENTERPRISES LIMITED,Corporate Management,625.00,Rents,2324P06_CR00321,2696
Sandwell Metropolitan Borough Council,http://www.sandwell.gov.uk/info/200202/performance_and_spending/1079/payments_over_500,04-Sep-2023,Housing & Assets Total,CKP LTD T/A HAGLEY HOTEL,Corporate Management,630.00,Rents,2324P06_CR00322,143677
Sandwell Metropolitan Borough Council,http://www.sandwell.gov.uk/info/200202/performance_and_spending/1079/payments_over_500,01-Sep-2023,Housing & Assets Total,GILANI ENTERPRISES LIMITED,Corporate Management,666.67,Rents,2324P06_CR00323,2696
Sandwell Metropolitan Borough Council,http://www.sandwell.gov.uk/info/200202/performance_and_spending/1079/payments_over_500,01-Sep-2023,Housing & Assets Total,"HIGHFIELD HOUSE HOTEL,",Corporate Management,675.00,Rents,2324P06_CR00324,162756
Sandwell Metropolitan Borough Council,http://www.sandwell.gov.uk/info/200202/performance_and_spending/1079/payments_over_500,01-Sep-2023,Housing & Assets Total,CONTRACT LETTINGS LTD,Corporate Management,678.60,Rents,2324P06_CR00325,76625
Sandwell Metropolitan Borough Council,http://www.sandwell.gov.uk/info/200202/performance_and_spending/1079/payments_over_500,01-Sep-2023,Housing & Assets Total,CONTRACT LETTINGS LTD,Corporate Management,678.60,Rents,2324P06_CR00326,76625
Sandwell Metropolitan Borough Council,http://www.sandwell.gov.uk/info/200202/performance_and_spending/1079/payments_over_500,05-Sep-2023,Housing & Assets Total,CONTRACT LETTINGS LTD,Corporate Management,701.22,Rents,2324P06_CR00327,76625
Sandwell Metropolitan Borough Council,http://www.sandwell.gov.uk/info/200202/performance_and_spending/1079/payments_over_500,05-Sep-2023,Housing & Assets Total,CONTRACT LETTINGS LTD,Corporate Management,701.22,Rents,2324P06_CR00328,76625
Sandwell Metropolitan Borough Council,http://www.sandwell.gov.uk/info/200202/performance_and_spending/1079/payments_over_500,01-Sep-2023,Housing & Assets Total,CONTRACT LETTINGS LTD,Corporate Management,738.60,Rents,2324P06_CR00329,76625
Sandwell Metropolitan Borough Council,http://www.sandwell.gov.uk/info/200202/performance_and_spending/1079/payments_over_500,01-Sep-2023,Housing & Assets Total,CONTRACT LETTINGS LTD,Corporate Management,738.60,Rents,2324P06_CR00330,76625
Sandwell Metropolitan Borough Council,http://www.sandwell.gov.uk/info/200202/performance_and_spending/1079/payments_over_500,05-Sep-2023,Housing & Assets Total,CONTRACT LETTINGS LTD,Corporate Management,763.22,Rents,2324P06_CR00331,76625
Sandwell Metropolitan Borough Council,http://www.sandwell.gov.uk/info/200202/performance_and_spending/1079/payments_over_500,20-Sep-2023,Housing & Assets Total,CONTRACT LETTINGS LTD,Corporate Management,763.22,Rents,2324P06_CR00332,76625
Sandwell Metropolitan Borough Council,http://www.sandwell.gov.uk/info/200202/performance_and_spending/1079/payments_over_500,01-Sep-2023,Housing & Assets Total,"HIGHFIELD HOUSE HOTEL,",Corporate Management,810.00,Rents,2324P06_CR00333,162756
Sandwell Metropolitan Borough Council,http://www.sandwell.gov.uk/info/200202/performance_and_spending/1079/payments_over_500,01-Sep-2023,Housing & Assets Total,GILANI ENTERPRISES LIMITED,Corporate Management,900.00,Rents,2324P06_CR00334,2696
Sandwell Metropolitan Borough Council,http://www.sandwell.gov.uk/info/200202/performance_and_spending/1079/payments_over_500,01-Sep-2023,Housing & Assets Total,REDACTED PERSONAL DATA,Corporate Management,1000.00,Rents,2324P06_CR00335,REDACTED PERSONAL DATA
Sandwell Metropolitan Borough Council,http://www.sandwell.gov.uk/info/200202/performance_and_spending/1079/payments_over_500,07-Sep-2023,Housing & Assets Total,CKP LTD T/A HAGLEY HOTEL,Corporate Management,1050.00,Rents,2324P06_CR00336,143677
Sandwell Metropolitan Borough Council,http://www.sandwell.gov.uk/info/200202/performance_and_spending/1079/payments_over_500,15-Sep-2023,Housing & Assets Total,CKP LTD T/A HAGLEY HOTEL,Corporate Management,1085.00,Rents,2324P06_CR00337,143677
Sandwell Metropolitan Borough Council,http://www.sandwell.gov.uk/info/200202/performance_and_spending/1079/payments_over_500,01-Sep-2023,Housing & Assets Total,CKP LTD T/A HAGLEY HOTEL,Corporate Management,1260.00,Rents,2324P06_CR00338,143677
Sandwell Metropolitan Borough Council,http://www.sandwell.gov.uk/info/200202/performance_and_spending/1079/payments_over_500,01-Sep-2023,Housing & Assets Total,GILANI ENTERPRISES LIMITED,Corporate Management,1333.33,Rents,2324P06_CR00339,2696
Sandwell Metropolitan Borough Council,http://www.sandwell.gov.uk/info/200202/performance_and_spending/1079/payments_over_500,01-Sep-2023,Housing & Assets Total,CKP LTD T/A HAGLEY HOTEL,Corporate Management,1395.00,Rents,2324P06_CR00340,143677
Sandwell Metropolitan Borough Council,http://www.sandwell.gov.uk/info/200202/performance_and_spending/1079/payments_over_500,01-Sep-2023,Housing & Assets Total,"HIGHFIELD HOUSE HOTEL,",Corporate Management,1395.00,Rents,2324P06_CR00341,162756
Sandwell Metropolitan Borough Council,http://www.sandwell.gov.uk/info/200202/performance_and_spending/1079/payments_over_500,01-Sep-2023,Housing & Assets Total,"HIGHFIELD HOUSE HOTEL,",Corporate Management,1395.00,Rents,2324P06_CR00342,162756
Sandwell Metropolitan Borough Council,http://www.sandwell.gov.uk/info/200202/performance_and_spending/1079/payments_over_500,15-Sep-2023,Housing & Assets Total,CKP LTD T/A HAGLEY HOTEL,Corporate Management,1450.00,Rents,2324P06_CR00343,143677
Sandwell Metropolitan Borough Council,http://www.sandwell.gov.uk/info/200202/performance_and_spending/1079/payments_over_500,07-Sep-2023,Housing & Assets Total,CKP LTD T/A HAGLEY HOTEL,Corporate Management,1500.00,Rents,2324P06_CR00344,143677
Sandwell Metropolitan Borough Council,http://www.sandwell.gov.uk/info/200202/performance_and_spending/1079/payments_over_500,01-Sep-2023,Housing & Assets Total,REDACTED PERSONAL DATA,Corporate Management,1503.00,Rents,2324P06_CR00345,REDACTED PERSONAL DATA
Sandwell Metropolitan Borough Council,http://www.sandwell.gov.uk/info/200202/performance_and_spending/1079/payments_over_500,01-Sep-2023,Housing & Assets Total,"HIGHFIELD HOUSE HOTEL,",Corporate Management,1540.00,Rents,2324P06_CR00346,162756
Sandwell Metropolitan Borough Council,http://www.sandwell.gov.uk/info/200202/performance_and_spending/1079/payments_over_500,01-Sep-2023,Housing & Assets Total,CKP LTD T/A HAGLEY HOTEL,Corporate Management,1550.00,Rents,2324P06_CR00347,143677
Sandwell Metropolitan Borough Council,http://www.sandwell.gov.uk/info/200202/performance_and_spending/1079/payments_over_500,05-Sep-2023,Housing & Assets Total,REDACTED PERSONAL DATA,Corporate Management,1700.00,Rents,2324P06_CR00348,REDACTED PERSONAL DATA
Sandwell Metropolitan Borough Council,http://www.sandwell.gov.uk/info/200202/performance_and_spending/1079/payments_over_500,12-Sep-2023,Housing & Assets Total,CENTRICK SALES & LETTINGS LTD,Corporate Management,1701.64,Rents,2324P06_CR00349,166962
Sandwell Metropolitan Borough Council,http://www.sandwell.gov.uk/info/200202/performance_and_spending/1079/payments_over_500,01-Sep-2023,Housing & Assets Total,"HIGHFIELD HOUSE HOTEL,",Corporate Management,1705.00,Rents,2324P06_CR00350,162756
Sandwell Metropolitan Borough Council,http://www.sandwell.gov.uk/info/200202/performance_and_spending/1079/payments_over_500,07-Sep-2023,Housing & Assets Total,CKP LTD T/A HAGLEY HOTEL,Corporate Management,1800.00,Rents,2324P06_CR00351,143677
Sandwell Metropolitan Borough Council,http://www.sandwell.gov.uk/info/200202/performance_and_spending/1079/payments_over_500,01-Sep-2023,Housing & Assets Total,"HIGHFIELD HOUSE HOTEL,",Corporate Management,1800.00,Rents,2324P06_CR00352,162756
Sandwell Metropolitan Borough Council,http://www.sandwell.gov.uk/info/200202/performance_and_spending/1079/payments_over_500,01-Sep-2023,Housing & Assets Total,CKP LTD T/A HAGLEY HOTEL,Corporate Management,1860.00,Rents,2324P06_CR00353,143677
Sandwell Metropolitan Borough Council,http://www.sandwell.gov.uk/info/200202/performance_and_spending/1079/payments_over_500,01-Sep-2023,Housing & Assets Total,"HIGHFIELD HOUSE HOTEL,",Corporate Management,1860.00,Rents,2324P06_CR00354,162756
Sandwell Metropolitan Borough Council,http://www.sandwell.gov.uk/info/200202/performance_and_spending/1079/payments_over_500,01-Sep-2023,Housing & Assets Total,"HIGHFIELD HOUSE HOTEL,",Corporate Management,1860.00,Rents,2324P06_CR00355,162756
Sandwell Metropolitan Borough Council,http://www.sandwell.gov.uk/info/200202/performance_and_spending/1079/payments_over_500,07-Sep-2023,Housing & Assets Total,CKP LTD T/A HAGLEY HOTEL,Corporate Management,1950.00,Rents,2324P06_CR00356,143677
Sandwell Metropolitan Borough Council,http://www.sandwell.gov.uk/info/200202/performance_and_spending/1079/payments_over_500,07-Sep-2023,Housing & Assets Total,CKP LTD T/A HAGLEY HOTEL,Corporate Management,1950.00,Rents,2324P06_CR00357,143677
Sandwell Metropolitan Borough Council,http://www.sandwell.gov.uk/info/200202/performance_and_spending/1079/payments_over_500,18-Sep-2023,Housing & Assets Total,COMPASS PROPERTIES,Corporate Management,2100.00,Rents,2324P06_CR00358,166027
Sandwell Metropolitan Borough Council,http://www.sandwell.gov.uk/info/200202/performance_and_spending/1079/payments_over_500,01-Sep-2023,Housing & Assets Total,GILANI ENTERPRISES LIMITED,Corporate Management,2133.33,Rents,2324P06_CR00359,2696
Sandwell Metropolitan Borough Council,http://www.sandwell.gov.uk/info/200202/performance_and_spending/1079/payments_over_500,01-Sep-2023,Housing & Assets Total,GILANI ENTERPRISES LIMITED,Corporate Management,2133.33,Rents,2324P06_CR00360,2696
Sandwell Metropolitan Borough Council,http://www.sandwell.gov.uk/info/200202/performance_and_spending/1079/payments_over_500,01-Sep-2023,Housing & Assets Total,GILANI ENTERPRISES LIMITED,Corporate Management,2133.33,Rents,2324P06_CR00361,2696
Sandwell Metropolitan Borough Council,http://www.sandwell.gov.uk/info/200202/performance_and_spending/1079/payments_over_500,01-Sep-2023,Housing & Assets Total,"HIGHFIELD HOUSE HOTEL,",Corporate Management,2325.00,Rents,2324P06_CR00362,162756
Sandwell Metropolitan Borough Council,http://www.sandwell.gov.uk/info/200202/performance_and_spending/1079/payments_over_500,01-Sep-2023,Housing & Assets Total,"HIGHFIELD HOUSE HOTEL,",Corporate Management,2325.00,Rents,2324P06_CR00363,162756
Sandwell Metropolitan Borough Council,http://www.sandwell.gov.uk/info/200202/performance_and_spending/1079/payments_over_500,01-Sep-2023,Housing & Assets Total,GILANI ENTERPRISES LIMITED,Corporate Management,2500.00,Rents,2324P06_CR00364,2696
Sandwell Metropolitan Borough Council,http://www.sandwell.gov.uk/info/200202/performance_and_spending/1079/payments_over_500,01-Sep-2023,Housing & Assets Total,CKP LTD T/A HAGLEY HOTEL,Corporate Management,2535.00,Rents,2324P06_CR00365,143677
Sandwell Metropolitan Borough Council,http://www.sandwell.gov.uk/info/200202/performance_and_spending/1079/payments_over_500,01-Sep-2023,Housing & Assets Total,GILANI ENTERPRISES LIMITED,Corporate Management,2600.00,Rents,2324P06_CR00366,2696
Sandwell Metropolitan Borough Council,http://www.sandwell.gov.uk/info/200202/performance_and_spending/1079/payments_over_500,01-Sep-2023,Housing & Assets Total,GILANI ENTERPRISES LIMITED,Corporate Management,2666.67,Rents,2324P06_CR00367,2696
Sandwell Metropolitan Borough Council,http://www.sandwell.gov.uk/info/200202/performance_and_spending/1079/payments_over_500,01-Sep-2023,Housing & Assets Total,CKP LTD T/A HAGLEY HOTEL,Corporate Management,2700.00,Rents,2324P06_CR00368,143677
Sandwell Metropolitan Borough Council,http://www.sandwell.gov.uk/info/200202/performance_and_spending/1079/payments_over_500,01-Sep-2023,Housing & Assets Total,CKP LTD T/A HAGLEY HOTEL,Corporate Management,3120.00,Rents,2324P06_CR00369,143677
Sandwell Metropolitan Borough Council,http://www.sandwell.gov.uk/info/200202/performance_and_spending/1079/payments_over_500,01-Sep-2023,Housing & Assets Total,GILANI ENTERPRISES LIMITED,Corporate Management,3200.00,Rents,2324P06_CR00370,2696
Sandwell Metropolitan Borough Council,http://www.sandwell.gov.uk/info/200202/performance_and_spending/1079/payments_over_500,01-Sep-2023,Housing & Assets Total,GILANI ENTERPRISES LIMITED,Corporate Management,3200.00,Rents,2324P06_CR00371,2696
Sandwell Metropolitan Borough Council,http://www.sandwell.gov.uk/info/200202/performance_and_spending/1079/payments_over_500,01-Sep-2023,Housing & Assets Total,GILANI ENTERPRISES LIMITED,Corporate Management,3200.00,Rents,2324P06_CR00372,2696
Sandwell Metropolitan Borough Council,http://www.sandwell.gov.uk/info/200202/performance_and_spending/1079/payments_over_500,01-Sep-2023,Housing & Assets Total,"HIGHFIELD HOUSE HOTEL,",Corporate Management,3240.00,Rents,2324P06_CR00373,162756
Sandwell Metropolitan Borough Council,http://www.sandwell.gov.uk/info/200202/performance_and_spending/1079/payments_over_500,01-Sep-2023,Housing & Assets Total,"HIGHFIELD HOUSE HOTEL,",Corporate Management,3255.00,Rents,2324P06_CR00374,162756
Sandwell Metropolitan Borough Council,http://www.sandwell.gov.uk/info/200202/performance_and_spending/1079/payments_over_500,01-Sep-2023,Housing & Assets Total,CKP LTD T/A HAGLEY HOTEL,Corporate Management,3445.00,Rents,2324P06_CR00375,143677
Sandwell Metropolitan Borough Council,http://www.sandwell.gov.uk/info/200202/performance_and_spending/1079/payments_over_500,01-Sep-2023,Housing & Assets Total,CKP LTD T/A HAGLEY HOTEL,Corporate Management,3510.00,Rents,2324P06_CR00376,143677
Sandwell Metropolitan Borough Council,http://www.sandwell.gov.uk/info/200202/performance_and_spending/1079/payments_over_500,01-Sep-2023,Housing & Assets Total,GILANI ENTERPRISES LIMITED,Corporate Management,3600.00,Rents,2324P06_CR00377,2696
Sandwell Metropolitan Borough Council,http://www.sandwell.gov.uk/info/200202/performance_and_spending/1079/payments_over_500,01-Sep-2023,Housing & Assets Total,GILANI ENTERPRISES LIMITED,Corporate Management,4000.00,Rents,2324P06_CR00378,2696
Sandwell Metropolitan Borough Council,http://www.sandwell.gov.uk/info/200202/performance_and_spending/1079/payments_over_500,01-Sep-2023,Housing & Assets Total,GILANI ENTERPRISES LIMITED,Corporate Management,4666.67,Rents,2324P06_CR00379,2696
Sandwell Metropolitan Borough Council,http://www.sandwell.gov.uk/info/200202/performance_and_spending/1079/payments_over_500,01-Sep-2023,Housing & Assets Total,REDACTED PERSONAL DATA,Corporate Management,4800.00,Rents,2324P06_CR00380,REDACTED PERSONAL DATA
Sandwell Metropolitan Borough Council,http://www.sandwell.gov.uk/info/200202/performance_and_spending/1079/payments_over_500,01-Sep-2023,Housing & Assets Total,GILANI ENTERPRISES LIMITED,Corporate Management,5300.00,Rents,2324P06_CR00381,2696
Sandwell Metropolitan Borough Council,http://www.sandwell.gov.uk/info/200202/performance_and_spending/1079/payments_over_500,01-Sep-2023,Housing & Assets Total,GILANI ENTERPRISES LIMITED,Corporate Management,5500.00,Rents,2324P06_CR00382,2696
Sandwell Metropolitan Borough Council,http://www.sandwell.gov.uk/info/200202/performance_and_spending/1079/payments_over_500,01-Sep-2023,Housing & Assets Total,GILANI ENTERPRISES LIMITED,Corporate Management,5600.00,Rents,2324P06_CR00383,2696
Sandwell Metropolitan Borough Council,http://www.sandwell.gov.uk/info/200202/performance_and_spending/1079/payments_over_500,01-Sep-2023,Housing & Assets Total,GILANI ENTERPRISES LIMITED,Corporate Management,5600.00,Rents,2324P06_CR00384,2696
Sandwell Metropolitan Borough Council,http://www.sandwell.gov.uk/info/200202/performance_and_spending/1079/payments_over_500,01-Sep-2023,Housing & Assets Total,GILANI ENTERPRISES LIMITED,Corporate Management,7733.33,Rents,2324P06_CR00385,2696
Sandwell Metropolitan Borough Council,http://www.sandwell.gov.uk/info/200202/performance_and_spending/1079/payments_over_500,10-Sep-2023,Housing & Assets Total,SAFFRON HOTEL,Corporate Management,82280.00,Rents,2324P06_CR00386,164316
Sandwell Metropolitan Borough Council,http://www.sandwell.gov.uk/info/200202/performance_and_spending/1079/payments_over_500,01-Sep-2023,Housing & Assets Total,PROFILE SECURITY SERVICES LTD,Corporate Management,11066.88,Security,2324P06_CR00387,131253
Sandwell Metropolitan Borough Council,http://www.sandwell.gov.uk/info/200202/performance_and_spending/1079/payments_over_500,01-Sep-2023,Housing & Assets Total,PROFILE SECURITY SERVICES LTD,Corporate Management,11066.88,Security,2324P06_CR00388,131253
Sandwell Metropolitan Borough Council,http://www.sandwell.gov.uk/info/200202/performance_and_spending/1079/payments_over_500,05-Sep-2023,Housing & Assets Total,REDACTED PERSONAL DATA,Corporate Management,600.00,Tenants Expenses,2324P06_CR00389,REDACTED PERSONAL DATA
Sandwell Metropolitan Borough Council,http://www.sandwell.gov.uk/info/200202/performance_and_spending/1079/payments_over_500,01-Sep-2023,Housing & Assets Total,REDACTED PERSONAL DATA,Corporate Management,1065.00,Tenants Expenses,2324P06_CR00390,REDACTED PERSONAL DATA
Sandwell Metropolitan Borough Council,http://www.sandwell.gov.uk/info/200202/performance_and_spending/1079/payments_over_500,15-Sep-2023,Housing & Assets Total,ANDREW TAPLIN ESTATE AGENTS,Corporate Management,1825.00,Tenants Expenses,2324P06_CR00391,166987
Sandwell Metropolitan Borough Council,http://www.sandwell.gov.uk/info/200202/performance_and_spending/1079/payments_over_500,19-Sep-2023,Housing & Assets Total,REDACTED PERSONAL DATA,Corporate Management,2000.00,Tenants Expenses,2324P06_CR00392,REDACTED PERSONAL DATA
Sandwell Metropolitan Borough Council,http://www.sandwell.gov.uk/info/200202/performance_and_spending/1079/payments_over_500,26-Sep-2023,Housing & Assets Total,CONNELLS RESIDENTIAL LETTINGS,Corporate Management,2046.00,Tenants Expenses,2324P06_CR00393,126463
Sandwell Metropolitan Borough Council,http://www.sandwell.gov.uk/info/200202/performance_and_spending/1079/payments_over_500,04-Sep-2023,Housing & Assets Total,WATER PLUS SELECT LIMITED,Corporate Management,531.86,Water Services,2324P06_CR00394,129644
Sandwell Metropolitan Borough Council,http://www.sandwell.gov.uk/info/200202/performance_and_spending/1079/payments_over_500,27-Sep-2023,Housing & Assets Total,SAVILLS UK LTD,Corporate Management,576.40,Water Services,2324P06_CR00395,122760
Sandwell Metropolitan Borough Council,http://www.sandwell.gov.uk/info/200202/performance_and_spending/1079/payments_over_500,01-Sep-2023,Housing & Assets Total,SWEETPAN PROMOTIONS,Housing & Assets Total,500.00,Civic Events,2324P06_CR00396,163855
Sandwell Metropolitan Borough Council,http://www.sandwell.gov.uk/info/200202/performance_and_spending/1079/payments_over_500,01-Sep-2023,Housing & Assets Total,SUBLIME SCIENCE LTD,Housing & Assets Total,536.00,Civic Events,2324P06_CR00397,166304
